Workbook

Sheet Filme
B1: Titel | C1: Abenteuer | D1: Action | E1: Animation | F1: Comedy | G1: Drama | H1: Erotik | I1: Fantasy | J1: Grusel | K1: Horror | L1: Komödie | M1: Krieg | N1: Krimi | O1: Liebe/Romantik | P1: Musik | Q1: Mystery | R1: Science-Fiction | S1: Splatter | T1: Thriller | U1: Western | V1: Zombies | W1: Länge | X1: Erscheinungsjahr | Y1: FSK | Z1: Tonformat Deutsch | AA1: Tonformat Englisch | AB1: Bildformat (x:1) | AC1: Anzahl Discs | AD1: Medientyp | AE1: Orginaltitel | AF1: Sortierschlüssel
A2: =A1+1 -> 1 | B2: 2001: Odyssee im Weltraum | R2: X | W2: 148 | X2: 1968 | Y2: 12 | Z2: Dolby Digital 5.1 | AA2: Dolby Digital 5.1 | AB2: 2.2 | AC2: 1 | AD2: Blu-ray | AE2: 2001: A Space Odyssey | AF2: 2001
A3: 2 | B3: 2010 - Das Jahr, in dem wir Kontakt aufnehmen | Q3: X | R3: X | W3: 116 | X3: 1984 | Y3: 12 | Z3: Dolby Digital 5.1 | AA3: Dolby TrueHD 5.1 | AB3: 2.4 | AC3: 1 | AD3: Blu-ray | AE3: 2010 | AF3: 2010
A4: 3 | B4: 3 Engel für Charlie | D4: X | L4: X | W4: 94 | X4: 2000 | Y4: 12 | Z4: Dolby Digital 5.1 | AA4: Dolby Digital 5.1 | AB4: 2.35 | AC4: 1 | AD4: DVD | AE4: Charlie's Angels | AF4: 3 Engel für Charlie 1
A5: 4 | B5: 3 Engel für Charlie - Volle Power | D5: X | L5: X | W5: 103 | X5: 2003 | Y5: 16 | Z5: Dolby Digital 5.1 | AA5: Dolby Digital 5.1 | AB5: 2.4 | AC5: 1 | AD5: DVD | AE5: Charlie's Angels: Full Throttle | AF5: 3 Engel für Charlie 2
A6: 5 | B6: 7 Zwerge - Männer allein im Wald | L6: X | W6: 91 | X6: 2004 | Y6: 6 | Z6: Dolby Digital 5.1 | AA6: - | AB6: 2.35 | AC6: 2 | AD6: DVD | AE6: 7 Zwerge - Männer allein im Wald | AF6: 7 Zwerge 1
A7: 6 | B7: 7 Zwerge - Der Wald ist nicht genug | L7: X | W7: 91 | X7: 2006 | Y7: 0 | Z7: Dolby Digital 5.1 | AA7: - | AB7: 2.35 | AC7: 2 | AD7: DVD | AE7: 7 Zwerge - Der Wald ist nicht genug | AF7: 7 Zwerge 2
A8: 7 | B8: Ab durch die Hecke | D8: X | E8: X | L8: X | W8: 80 | X8: 2006 | Y8: 0 | Z8: Dolby Digital 5.1 | AA8: Dolby Digital 5.1 | AB8: 1.85 | AC8: 2 | AD8: DVD | AE8: Over the Hedge | AF8: Ab durch…
A9: 8 | B9: Æon Flux - Blicke der Zukunft ins Auge | D9: X | R9: X | W9: 89 | X9: 2005 | Y9: 12 | Z9: Dolby Digital 5.1 | AA9: Dolby Digital 5.1 | AB9: 2.35 | AC9: 1 | AD9: DVD | AE9: Æon Flux | AF9: Aeon Flux
A10: 9 | B10: Akte X - Der Film | R10: X | T10: X | W10: 118 | X10: 1998 | Y10: 12 | Z10: Dolby Digital 5.1 | AA10: Dolby Digital 5.1 | AB10: 2.4 | AC10: 1 | AD10: DVD | AE10: X-Files, The | AF10: Akte X - Der Film
A11: 10 | B11: Alien - Das unheimliche Wesen aus einer fremden Welt | K11: X | R11: X | W11: 117 | X11: 1979 | Y11: 16 | Z11: DTS 5.1 | AA11: DTS-HD Master Audio 5.1 | AB11: 2.35 | AC11: 1 | AD11: Blu-ray | AE11: Alien | AF11: Alien 1
A12: 11 | B12: Aliens - Die Rückkehr | D12: X | K12: X | R12: X | W12: 154 | X12: 1986 | Y12: 16 | Z12: DTS 5.1 | AA12: DTS-HD Master Audio 5.1 | AB12: 1.85 | AC12: 1 | AD12: Blu-ray | AE12: Aliens | AF12: Alien 2
A13: 12 | B13: Alien³ | K13: X | R13: X | W13: 145 | X13: 1992 | Y13: 16 | Z13: DTS 5.1 | AA13: DTS-HD Master Audio 5.1 | AB13: 2.35 | AC13: 1 | AD13: Blu-ray | AE13: Alien³ | AF13: Alien 3
A14: 13 | B14: Alien - Die Wiedergeburt | D14: X | K14: X | R14: X | W14: 145 | X14: 1997 | Y14: 16 | Z14: DTS 5.1 | AA14: DTS-HD Master Audio 5.1 | AB14: 2.35 | AC14: 1 | AD14: Blu-ray | AE14: Alien: Resurrection | AF14: Alien 4
A15: 14 | B15: Alien: Covenant | K15: X | R15: X | T15: X | W15: 122 | X15: 2017 | Y15: 16 | Z15: DTS 5.1 | AA15: DTS-HD Master Audio 7.1 | AB15: 2.4 | AC15: 1 | AD15: Blu-ray | AE15: Alien: Covenant | AF15: Alien: Covenant
A16: 15 | B16: Alita: Battle Angel | C16: X | D16: X | O16: X | R16: X | T16: X | W16: 122 | X16: 2019 | Y16: 12 | Z16: DTS 5.1 | AA16: DTS-HD Master Audio 7.1 | AB16: 2.39 | AC16: 1 | AD16: Blu-ray | AE16: Alita: Battle Angel | AF16: Alita
A17: 16 | B17: Alles steht Kopf | E17: X | L17: X | W17: 95 | X17: 2015 | Y17: 0 | Z17: DTS-HD Master Audio 7.1 | AA17: Dolby Digital 7.1 | AB17: 1.78 | AC17: 3 | AD17: 3D Blu-ray | AE17: Inside Out | AF17: Alles steht Kopf
A18: 17 | B18: American Beauty | G18: X | L18: X | O18: X | W18: 117 | X18: 1999 | Y18: 16 | Z18: Dolby Digital 5.1 | AA18: Dolby Digital 5.1 | AB18: 2.35 | AC18: 1 | AD18: DVD | AE18: American Beauty | AF18: American Beauty
A19: 18 | B19: American Pie | L19: X | O19: X | W19: 92 | X19: 1999 | Y19: 12 | Z19: DTS 5.1 | AA19: Dolby Digital 5.1 | AB19: 1.85 | AC19: 2 | AD19: DVD | AE19: American Pie | AF19: American Pie 1
A20: 19 | B20: American Pie 2 | L20: X | W20: 106 | X20: 2001 | Y20: 12 | Z20: DTS 5.1 | AA20: Dolby Digital 5.1 | AB20: 1.85 | AC20: 1 | AD20: DVD | AE20: American Pie 2 | AF20: American Pie 2
A21: 20 | B21: American Pie - Jetzt wird geheiratet | L21: X | W21: 99 | X21: 2003 | Y21: 16 | Z21: Dolby Digital 5.1 | AA21: Dolby Digital 5.1 | AB21: 2.35 | AC21: 1 | AD21: DVD | AE21: American Wedding | AF21: American Pie 3
A22: 21 | B22: Anchorman - Die Legende von Ron Burgundy | L22: X | W22: 90 | X22: 2004 | Y22: 12 | Z22: Dolby Digital 5.1 | AA22: Dolby Digital 5.1 | AB22: 1.85 | AC22: 1 | AD22: DVD | AE22: Anchorman: The Legend of Ron Burgundy | AF22: Anchorman
A23: 22 | B23: Apollo 13 | C23: X | G23: X | W23: 134 | X23: 1995 | Y23: 12 | Z23: DTS 5.1 | AA23: Dolby Digital 5.1 | AB23: 2.35 | AC23: 2 | AD23: DVD | AE23: Apollo 13 | AF23: Apollo 13
A24: 23 | B24: Assassin's Creed | C24: X | D24: X | I24: X | W24: 115 | X24: 2016 | Y24: 16 | Z24: DTS 5.1 | AA24: DTS-HD Master Audio 7.1 | AB24: 2.39 | AC24: 2 | AD24: 3D Blu-ray | AE24: Assassin's Creed | AF24: Assassin's Creed
A25: 24 | B25: Atomic Blonde | D25: X | T25: X | W25: 115 | X25: 2017 | Y25: 16 | Z25: DTS-HD Master Audio 7.1 | AA25: DTS-HD Master Audio 7.1 | AB25: 2.4 | AC25: 1 | AD25: Blu-ray | AE25: Atomic Blonde | AF25: Atomic Blonde
A26: 25 | B26: Austin Powers - Das Schärfste was ihre Majestät zu bieten hat | L26: X | W26: 85 | X26: 1997 | Y26: 12 | Z26: Dolby Digital 5.1 | AA26: Dolby Digital 5.1 | AB26: 2.35 | AC26: 1 | AD26: DVD | AE26: Austin Powers: International Man of Mystery | AF26: Austin Powers 1
A27: 26 | B27: Austin Powers - Spion in geheimer Missionarsstellung | L27: X | W27: 91 | X27: 1999 | Y27: 12 | Z27: Dolby Digital 5.1 | AA27: Dolby Digital 5.1 | AB27: 2.35 | AC27: 1 | AD27: DVD | AE27: Austin Powers: The Spy Who Shagged Me | AF27: Austin Powers 2
A28: 27 | B28: Austin Powers in Goldständer | L28: X | N28: X | R28: X | W28: 91 | X28: 2002 | Y28: 12 | Z28: Dolby Digital 6.1 | AA28: Dolby Digital 6.1 | AB28: 2.1 | AC28: 1 | AD28: DVD | AE28: Austin Powers in Goldmember | AF28: Austin Powers 3
A29: 28 | B29: Bad Boys - Harte Jungs | D29: X | L29: X | T29: X | W29: 114 | X29: 1995 | Y29: 18 | Z29: Dolby Digital 5.1 | AA29: Dolby Digital 5.1 | AB29: 1.85 | AC29: 1 | AD29: DVD | AE29: Bad Boys | AF29: Bad Boys 1
A30: 29 | B30: Bad Boys II | D30: X | L30: X | W30: 141 | X30: 2003 | Y30: 18 | Z30: Dolby Digital 5.1 | AA30: Dolby Digital 5.1 | AB30: 2.4 | AC30: 2 | AD30: DVD | AE30: Bad Boys II | AF30: Bad Boys 2
A31: 30 | B31: Beverly Hills Cop | D31: X | L31: X | W31: 101 | X31: 1984 | Y31: 12 | Z31: Dolby Digital 2.0 Surround | AA31: Dolby Digital 5.1 | AB31: 1.85 | AC31: 1 | AD31: DVD | AE31: Beverly Hills Cop | AF31: Beverly Hills Cop 1
A32: 31 | B32: Beverly Hills Cop II | D32: X | L32: X | W32: 99 | X32: 1987 | Y32: 12 | Z32: Dolby Digital 2.0 Surround | AA32: Dolby Digital 5.1 | AB32: 2.35 | AC32: 1 | AD32: DVD | AE32: Beverly Hills Cop II | AF32: Beverly Hills Cop 2
A33: 32 | B33: Beverly Hills Cop III | D33: X | L33: X | W33: 100 | X33: 1994 | Y33: 16 | Z33: Dolby Digital 5.1 | AA33: Dolby Digital 5.1 | AB33: 1.78 | AC33: 1 | AD33: DVD | AE33: Beverly Hills Cop III | AF33: Beverly Hills Cop 3
A34: 33 | B34: Black Hawk Down | D34: X | M34: X | W34: 138 | X34: 2001 | Y34: 16 | Z34: Dolby Digital 5.1 | AA34: Dolby Digital 5.1 | AB34: 2.35 | AC34: 2 | AD34: DVD | AE34: Black Hawk Down | AF34: Black Hawk Down
A35: 34 | B35: Blade Runner, Der | R35: X | W35: 118 | X35: 1982 | Y35: 16 | Z35: Dolby Digital 5.1 | AA35: Dolby TrueHD 5.1 | AB35: 2.4 | AC35: 1 | AD35: Blu-ray | AE35: Blade Runner | AF35: Blade Runner 1
A36: 35 | B36: Blade Runner 2049 | R36: X | T36: X | W36: 163 | X36: 2017 | Y36: 16 | Z36: Dolby Digital 5.1 | AA36: Dolby Digital 5.1 | AB36: 2.4 | AC36: 2 | AD36: 3D Blu-ray | AE36: Blade Runner 2049 | AF36: Blade Runner 2
A37: 36 | B37: Blues Brothers | L37: X | W37: 142 | X37: 1980 | Y37: 12 | Z37: Dolby Digital 1.0 Mono | AA37: Dolby Digital 5.1 | AB37: 1.85 | AC37: 1 | AD37: DVD | AE37: Blues Brothers, The | AF37: Blues Brothers 1
A38: 37 | B38: Blues Brothers 2000 | L38: X | P38: X | W38: 119 | X38: 1998 | Y38: 6 | Z38: Dolby Digital 2.0 Surround | AA38: Dolby Digital 5.1 | AB38: 1.85 | AC38: 1 | AD38: DVD | AE38: Blues Brothers 2000 | AF38: Blues Brothers 2
A39: 38 | B39: Boot, Das | D39: X | G39: X | M39: X | W39: 208 | X39: 1981 | Y39: 12 | Z39: Dolby Digital 5.1 | AA39: Dolby Digital 5.1 | AB39: 1.78 | AC39: 1 | AD39: DVD | AE39: Boot, Das | AF39: Boot
A40: 39 | B40: Boot, Das - The Original Uncut Version (UK) | D40: X | G40: X | M40: X | W40: 282 | X40: 1981 | Y40: 18 | Z40: Dolby Digital 5.1 | AA40: Dolby Digital 5.1 | AB40: 1.85 | AC40: 2 | AD40: DVD | AE40: Boot, Das | AF40: Boot (UK)
A41: 40 | B41: Bruce Allmächtig | I41: X | L41: X | W41: 97 | X41: 2003 | Y41: 6 | Z41: Dolby Digital 5.1 | AA41: Dolby Digital 5.1 | AB41: 1.85 | AC41: 1 | AD41: DVD | AE41: Bruce Almighty | AF41: Bruce Allmächtig
A42: 41 | B42: Bullyparade - Der Film | L42: X | W42: 100 | X42: 2017 | Y42: 6 | Z42: DTS-HD Master Audio 5.1 | AA42: - | AB42: 2.39 | AC42: 1 | AD42: Blu-ray | AE42: Bullyparade - Der Film | AF42: Bullyparade - Der Film
A43: 42 | B43: Cell, The | I43: X | K43: X | T43: X | W43: 105 | X43: 2000 | Y43: 18 | Z43: DTS 5.1 | AA43: Dolby Digital 5.1 | AB43: 2.35 | AC43: 2 | AD43: DVD | AE43: Cell, The | AF43: Cell
A44: 43 | B44: Chef Zum Verlieben, Ein | L44: X | O44: X | W44: 97 | X44: 2002 | Y44: 0 | Z44: Dolby Digital 5.1 | AA44: Dolby Digital 5.1 | AB44: 1.85 | AC44: 1 | AD44: DVD | AE44: Two Weeks Notice | AF44: Chef Zum Verlieben
A45: 44 | B45: Cloud Atlas | G45: X | Q45: X | R45: X | W45: 172 | X45: 2012 | Y45: 12 | Z45: DTS-HD Master Audio 5.1 | AA45: DTS-HD Master Audio 5.1 | AB45: 2.4 | AC45: 1 | AD45: Blu-ray | AE45: Cloud Atlas | AF45: Cloud Atlas
A46: 45 | B46: Constantine | D46: X | K46: X | W46: 121 | X46: 2005 | Y46: 16 | Z46: Dolby Digital 5.1 | AA46: Dolby TrueHD 5.1 | AB46: 2.4 | AC46: 1 | AD46: Blu-ray | AE46: Constantine | AF46: Constantine
A47: 46 | B47: Contagion | G47: X | T47: X | W47: 106 | X47: 2011 | Y47: 12 | Z47: Dolby Digital 5.1 | AA47: DTS-HD Master Audio 5.1 | AB47: 1.78 | AC47: 1 | AD47: Blu-ray | AE47: Contagion | AF47: Contagion
A48: 47 | B48: Croods, Die | C48: X | E48: X | L48: X | W48: 99 | X48: 2013 | Y48: 0 | Z48: DTS 5.1 | AA48: DTS-HD Master Audio 7.1 | AB48: 2.35 | AC48: 3 | AD48: 3D Blu-ray | AE48: Croods, The | AF48: Croods
A49: 48 | B49: Da Vinci Code - Sakrileg, The | G49: X | N49: X | Q49: X | T49: X | W49: 167 | X49: 2006 | Y49: 12 | Z49: Dolby Digital 5.1 | AA49: Dolby Digital 5.1 | AB49: 2.4 | AC49: 2 | AD49: DVD | AE49: Da Vinci Code, The | AF49: Da Vinci Code
A50: 49 | B50: Dark City | R50: X | T50: X | W50: 102 | X50: 1998 | Y50: 16 | Z50: Dolby Digital 5.1 | AA50: Dolby Digital 5.1 | AB50: 2.35 | AC50: 1 | AD50: DVD | AE50: Dark City | AF50: Dark City
A51: 50 | B51: Dark Knight, The | D51: X | G51: X | T51: X | W51: 146 | X51: 2008 | Y51: 16 | Z51: Dolby Digital 5.1 | AA51: Dolby Digital 5.1 | AB51: 2.4 | AC51: 1 | AD51: DVD | AE51: Dark Knight, The | AF51: Dark Knight
A52: 51 | B52: Demolition Man | D52: X | L52: X | R52: X | W52: 115 | X52: 1993 | Y52: 16 | Z52: Dolby Digital 5.1 | AA52: DTS-HD Master Audio 5.1 | AB52: 2.4 | AC52: 1 | AD52: Blu-ray | AE52: Demolition Man | AF52: Demolition Man
A53: 52 | B53: Dirty Dancing | G53: X | O53: X | W53: 105 | X53: 1987 | Y53: 12 | Z53: Dolby Digital 5.1 | AA53: Dolby Digital 5.1 | AB53: 1.85 | AC53: 1 | AD53: DVD | AE53: Dirty Dancing | AF53: Dirty Dancing
A54: 53 | B54: Dracula - Tot aber Glücklich | L54: X | W54: 86 | X54: 1995 | Y54: 12 | Z54: Dolby Digital 5.1 | AA54: - | AB54: 1.33 | AC54: 1 | AD54: DVD | AE54: Dracula: Dead and Loving It | AF54: Dracula - Tot aber Glücklich
A55: 54 | B55: Eiskalte Engel | O55: X | T55: X | W55: 95 | X55: 1999 | Y55: 16 | Z55: Dolby Digital 5.1 | AA55: Dolby Digital 5.1 | AB55: 1.85 | AC55: 1 | AD55: DVD | AE55: Cruel Intentions | AF55: Eiskalte Engel
A56: 55 | B56: Eiskönigin - Völlig unverfroren, Die | C56: X | E56: X | I56: X | L56: X | O56: X | P56: X | W56: 102 | X56: 2013 | Y56: 0 | Z56: DTS-HD Master Audio 7.1 | AA56: DTS-HD Master Audio 7.1 | AB56: 2.24 | AC56: 2 | AD56: 3D Blu-ray | AE56: Frozen | AF56: Eiskönigin
A57: 56 | B57: Epic - Verborgenes Königreich | C57: X | E57: X | L57: X | W57: 102 | X57: 2013 | Y57: 6 | Z57: DTS 5.1 | AA57: DTS-HD Master Audio 7.1 | AB57: 2.4 | AC57: 3 | AD57: 3D Blu-ray | AE57: Epic | AF57: Epic
A58: 57 | B58: Erin Brockovich | G58: X | W58: 126 | X58: 2000 | Y58: 6 | Z58: Dolby Digital 5.1 | AA58: Dolby Digital 5.1 | AB58: 1.85 | AC58: 1 | AD58: DVD | AE58: Erin Brockovich | AF58: Erin Brockovich
A59: 58 | B59: Evolution | L59: X | R59: X | W59: 98 | X59: 2001 | Y59: 12 | Z59: Dolby Digital 5.1 | AA59: Dolby Digital 5.1 | AB59: 1.85 | AC59: 1 | AD59: DVD | AE59: Evolution | AF59: Evolution
A60: 59 | B60: Expendables, The | D60: X | T60: X | W60: 95 | X60: 2010 | Y60: 16 | Z60: Dolby Digital 5.1 | AA60: Dolby Digital 5.1 | AB60: 2.4 | AC60: 1 | AD60: DVD | AE60: Expendables, The | AF60: Expendables 1
A61: 60 | B61: Expendables, The | D61: X | T61: X | W61: 100 | X61: 2010 | Y61: 18 | Z61: Dolby Digital 5.1 | AA61: Dolby Digital 5.1 | AB61: 2.4 | AC61: 1 | AD61: DVD | AE61: Expendables, The | AF61: Expendables 1
A62: 61 | B62: Expendables, The (Extended Director's Cut) | D62: X | T62: X | W62: 114 | X62: 2010 | Y62: 18 | Z62: DTS-HD Master Audio 7.1 | AA62: DTS-HD Master Audio 7.1 | AB62: 2.4 | AC62: 1 | AD62: Blu-ray | AE62: Expendables, The | AF62: Expendables 1
A63: 62 | B63: Expendables 2, The (Limited Special Uncut Edition) | C63: X | D63: X | W63: 103 | X63: 2012 | Y63: 18 | Z63: DTS-HD Master Audio 7.1 | AA63: DTS-HD Master Audio 7.1 | AB63: 2.4 | AC63: 1 | AD63: Blu-ray | AE63: Expendables 2, The | AF63: Expendables 2
A64: 63 | B64: Expendables 3, The (Extended Director's Cut) | C64: X | D64: X | T64: X | W64: 132 | X64: 2014 | Y64: 18 | Z64: Dolby TrueHD 7.1 | AA64: Dolby TrueHD 7.1 | AB64: 2.4 | AC64: 1 | AD64: Blu-ray | AE64: Expendables 3, The | AF64: Expendables 3
A65: 64 | B65: Ey Mann - Wo is' mein Auto? | L65: X | R65: X | W65: 80 | X65: 2000 | Y65: 12 | Z65: Dolby Digital 5.1 | AA65: Dolby Digital 5.1 | AB65: 1.85 | AC65: 1 | AD65: DVD | AE65: Dude, Where's My Car? | AF65: Ey Mann
A66: =A65+1 -> 65 | B66: Final Fantasy - Die Mächte in Dir | C66: X | D66: X | E66: X | I66: X | Q66: X | R66: X | W66: 102 | X66: 2001 | Y66: 12 | Z66: Dolby Digital 5.1 | AA66: Dolby Digital 5.1 | AB66: 1.85 | AC66: 2 | AD66: DVD | AE66: Final Fantasy: The Spirits Within | AF66: Final Fantasy
A67: 66 | B67: Findet Dorie | D67: X | E67: X | L67: X | W67: 97 | X67: 2016 | Y67: 0 | Z67: Dolby Digital 7.1 | AA67: DTS-HD Master Audio 7.1 | AB67: 1.78 | AC67: 3 | AD67: 3D Blu-ray | AE67: Finding Dory | AF67: Findet Dorie
A68: 67 | B68: Findet Nemo | C68: X | E68: X | L68: X | W68: 96 | X68: 2003 | Y68: 0 | Z68: DTS 6.1-ES | AA68: Dolby Digital 5.1 | AB68: 1.78 | AC68: 2 | AD68: DVD | AE68: Finding Nemo | AF68: Findet Nemo
A69: 68 | B69: Forrest Gump | G69: X | W69: 136 | X69: 1994 | Y69: 12 | Z69: Dolby Digital 5.1 | AA69: Dolby Digital 5.1 | AB69: 2.35 | AC69: 2 | AD69: DVD | AE69: Forrest Gump | AF69: Forrest Gump
A70: 69 | B70: Four Rooms | D70: X | L70: X | W70: 94 | X70: 1995 | Y70: 16 | Z70: Dolby Digital 5.1 | AA70: - | AB70: 1.85 | AC70: 1 | AD70: DVD | AE70: Four Rooms | AF70: Four Rooms
A71: 70 | B71: Four Rooms (UK) | D71: X | L71: X | W71: 94 | X71: 1995 | Y71: 18 | Z71: - | AA71: Dolby Digital 5.1 | AB71: 1.85 | AC71: 1 | AD71: DVD | AE71: Four Rooms | AF71: Four Rooms (UK)
A72: 71 | B72: From Dusk Till Dawn | K72: X | L72: X | S72: X | W72: 104 | X72: 1996 | Y72: 18 | Z72: Dolby Digital 5.1 | AA72: Dolby Digital 5.1 | AB72: 1.85 | AC72: 2 | AD72: DVD | AE72: From Dusk Till Dawn | AF72: From Dusk Till Dawn
A73: 72 | B73: Fünfte Element, Das | D73: X | I73: X | L73: X | R73: X | W73: 121 | X73: 1997 | Y73: 12 | Z73: Dolby Digital 5.1 | AA73: Dolby Digital 2.0 Surround | AB73: 2.35 | AC73: 1 | AD73: DVD | AE73: Fifth Element, The | AF73: Fünfte Element
A74: 73 | B74: Fünfte Element, Das | D74: X | I74: X | L74: X | R74: X | W74: 126 | X74: 1997 | Y74: 12 | Z74: DTS-HD High Resolution 6.1 | AA74: DTS-HD High Resolution 6.1 | AB74: 2.35 | AC74: 1 | AD74: Blu-ray | AE74: Fifth Element, The | AF74: Fünfte Element
A75: 74 | B75: Futurama: Bender's Big Score! | E75: X | L75: X | R75: X | W75: 85 | X75: 2007 | Y75: 12 | Z75: Dolby Digital 5.1 | AA75: Dolby Digital 5.1 | AB75: 1.78 | AC75: 1 | AD75: DVD | AE75: Futurama: Bender's Big Score! | AF75: Futurama 1
A76: 75 | B76: Futurama - Die Ära des Tentakels | E76: X | L76: X | R76: X | W76: 85 | X76: 2008 | Y76: 12 | Z76: Dolby Digital 5.1 | AA76: Dolby Digital 5.1 | AB76: 1.78 | AC76: 1 | AD76: DVD | AE76: Futurama: The Beast with a Billion Backs | AF76: Futurama 2
A77: 76 | B77: Futurama: Bender's Game | E77: X | L77: X | R77: X | W77: 83 | X77: 2008 | Y77: 12 | Z77: Dolby Digital 5.1 | AA77: Dolby Digital 5.1 | AB77: 1.78 | AC77: 1 | AD77: DVD | AE77: Futurama: Bender's Game | AF77: Futurama 3
A78: 77 | B78: Futurama - Leela und die Enzyklopoden | E78: X | L78: X | R78: X | W78: 86 | X78: 2009 | Y78: 12 | Z78: Dolby Digital 5.1 | AA78: Dolby Digital 5.1 | AB78: 1.78 | AC78: 1 | AD78: DVD | AE78: Futurama: Into the Wild Green Yonder | AF78: Futurama 4
A79: 78 | B79: Galaxy Quest - Planlos durchs Weltall | L79: X | R79: X | W79: 102 | X79: 1999 | Y79: 12 | Z79: Dolby Digital 5.1 | AA79: Dolby Digital 5.1 | AB79: 1.78 | AC79: 1 | AD79: DVD | AE79: Galaxy Quest | AF79: Galaxy Quest
A80: 79 | B80: Gattaca | G80: X | R80: X | T80: X | W80: 106 | X80: 1997 | Y80: 12 | Z80: Dolby TrueHD 5.1 | AA80: Dolby TrueHD 5.1 | AB80: 2.4 | AC80: 1 | AD80: Blu-ray | AE80: Gattaca | AF80: Gattaca
A81: 80 | B81: Geisterschloss, Das | J81: X | W81: 107 | X81: 1999 | Y81: 12 | Z81: Dolby Digital 5.1 | AA81: Dolby Digital 5.1 | AB81: 2.35 | AC81: 1 | AD81: DVD | AE81: Haunting, The | AF81: Geisterschloss
A82: 81 | B82: Ghost in the Shell | D82: X | G82: X | R82: X | T82: X | W82: 107 | X82: 2017 | Y82: 16 | Z82: Dolby Digital 5.1 | AA82: Dolby Atmos 7.1.4 | AB82: 1.85 | AC82: 2 | AD82: 3D Blu-ray | AE82: Ghost in the Shell | AF82: Ghost in the Shell
A83: 82 | B83: Ghostbusters | I83: X | L83: X | W83: 101 | X83: 1984 | Y83: 12 | Z83: Dolby Digital 2.0 Surround | AA83: Dolby Digital 5.1 | AB83: 2.35 | AC83: 1 | AD83: DVD | AE83: Ghostbusters | AF83: Ghostbusters 1
A84: 83 | B84: Ghostbusters II | I84: X | J84: X | K84: X | L84: X | Q84: X | W84: 104 | X84: 1989 | Y84: 12 | Z84: Dolby Digital 2.0 Surround | AA84: Dolby Digital 5.1 | AB84: 2.35 | AC84: 1 | AD84: DVD | AE84: Ghostbusters II | AF84: Ghostbusters 2
A85: 84 | B85: Girls United | L85: X | W85: 94 | X85: 2000 | Y85: 6 | Z85: Dolby Digital 5.1 | AA85: Dolby Digital 5.1 | AB85: 1.85 | AC85: 1 | AD85: DVD | AE85: Bring It On | AF85: Girls United
A86: 85 | B86: Gravity | G86: X | R86: X | W86: 91 | X86: 2013 | Y86: 12 | Z86: Dolby Digital 5.1 | AA86: DTS-HD Master Audio 5.1 | AB86: 2.4 | AC86: 1 | AD86: Blu-ray | AE86: Gravity | AF86: Gravity
A87: 86 | B87: Harry Potter und der Stein der Weisen | C87: X | I87: X | W87: 157 | X87: 2001 | Y87: 12 | Z87: Dolby Digital 5.1 | AA87: DTS-HD Master Audio 5.1 | AB87: 2.4 | AC87: 1 | AD87: Blu-ray | AE87: Harry Potter and the Sorcerer's Stone | AF87: Harry Potter 1
A88: 87 | B88: Harry Potter und die Kammer des Schreckens | C88: X | I88: X | W88: 174 | X88: 2002 | Y88: 12 | Z88: Dolby Digital 5.1 | AA88: DTS-HD Master Audio 5.1 | AB88: 2.4 | AC88: 1 | AD88: Blu-ray | AE88: Harry Potter and the Chamber of Secrets | AF88: Harry Potter 2
A89: 88 | B89: Harry Potter und der Gefangene von Askaban | C89: X | I89: X | W89: 142 | X89: 2004 | Y89: 12 | Z89: Dolby Digital 5.1 | AA89: DTS-HD Master Audio 5.1 | AB89: 2.4 | AC89: 1 | AD89: Blu-ray | AE89: Harry Potter and the Prisoner of Azkaban | AF89: Harry Potter 3
A90: 89 | B90: Harry Potter und der Feuerkelch | C90: X | I90: X | W90: 157 | X90: 2005 | Y90: 12 | Z90: Dolby Digital 5.1 | AA90: DTS-HD Master Audio 5.1 | AB90: 2.4 | AC90: 1 | AD90: Blu-ray | AE90: Harry Potter and the Goblet of Fire | AF90: Harry Potter 4
A91: 90 | B91: Harry Potter und der Orden des Phönix | C91: X | I91: X | W91: 138 | X91: 2007 | Y91: 12 | Z91: Dolby Digital 5.1 | AA91: DTS-HD Master Audio 5.1 | AB91: 2.4 | AC91: 1 | AD91: Blu-ray | AE91: Harry Potter and the Order of the Phoenix | AF91: Harry Potter 5
A92: 91 | B92: Harry Potter und der Halbblut-Prinz | C92: X | I92: X | W92: 153 | X92: 2009 | Y92: 12 | Z92: Dolby Digital 5.1 | AA92: DTS-HD Master Audio 5.1 | AB92: 2.4 | AC92: 1 | AD92: Blu-ray | AE92: Harry Potter and the Half-Blood Prince | AF92: Harry Potter 6
A93: 92 | B93: Harry Potter und die Heiligtümer des Todes - Teil 1 | C93: X | I93: X | W93: 146 | X93: 2010 | Y93: 12 | Z93: Dolby Digital 5.1 | AA93: DTS-HD Master Audio 5.1 | AB93: 2.4 | AC93: 1 | AD93: Blu-ray | AE93: Harry Potter and the Deathly Hallows: Part 1 | AF93: Harry Potter 7.1
A94: 93 | B94: Harry Potter und die Heiligtümer des Todes - Teil 2 | C94: X | D94: X | I94: X | W94: 130 | X94: 2011 | Y94: 12 | Z94: Dolby Digital 5.1 | AA94: DTS-HD Master Audio 5.1 | AB94: 2.4 | AC94: 1 | AD94: Blu-ray | AE94: Harry Potter and the Deathly Hallows: Part 2 | AF94: Harry Potter 7.2
A95: 94 | B95: Harvard Man | G95: X | N95: X | O95: X | T95: X | W95: 94 | X95: 2001 | Y95: 16 | Z95: DTS 5.1 | AA95: Dolby Digital 2.0 Surround | AB95: 1.78 | AC95: 1 | AD95: DVD | AE95: Harvard Man | AF95: Harvard Man
A96: 95 | B96: Herr der Ringe: Die Gefährten, Der | C96: X | I96: X | W96: 218 | X96: 2001 | Y96: 16 | Z96: DTS 6.1-ES | AA96: Dolby Digital 6.1 | AB96: 2.35 | AC96: 4 | AD96: DVD | AE96: Lord of the Rings: The Fellowship of the Ring, The | AF96: Herr der Ringe 1
A97: 96 | B97: Herr der Ringe: Die Gefährten, Der | C97: X | I97: X | W97: 228 | X97: 2001 | Y97: 16 | Z97: DTS-HD Master Audio 6.1 | AA97: DTS-HD Master Audio 6.1 | AB97: 2.4 | AC97: 5 | AD97: Blu-ray | AE97: Lord of the Rings: The Fellowship of the Ring, The | AF97: Herr der Ringe 1
A98: 97 | B98: Herr der Ringe: Die Zwei Türme, Der | C98: X | G98: X | I98: X | W98: 214 | X98: 2002 | Y98: 12 | Z98: DTS 6.1-ES | AA98: Dolby Digital 6.1 | AB98: 2.4 | AC98: 4 | AD98: DVD | AE98: Lord of the Rings: The Two Towers, The | AF98: Herr der Ringe 2
A99: 98 | B99: Herr der Ringe: Die Zwei Türme, Der | C99: X | G99: X | I99: X | W99: 235 | X99: 2002 | Y99: 12 | Z99: DTS-HD Master Audio 6.1 | AA99: DTS-HD Master Audio 6.1 | AB99: 2.4 | AC99: 5 | AD99: Blu-ray | AE99: Lord of the Rings: The Two Towers, The | AF99: Herr der Ringe 2
A100: 99 | B100: Herr der Ringe: Die Rückkehr des Königs, Der | C100: X | G100: X | I100: X | W100: 240 | X100: 2003 | Y100: 16 | Z100: DTS 6.1-ES | AA100: Dolby Digital 6.1 | AB100: 2.35 | AC100: 4 | AD100: DVD | AE100: Lord of the Rings: The Return of the King, The | AF100: Herr der Ringe 3
A101: 100 | B101: Herr der Ringe: Die Rückkehr des Königs, Der | C101: X | G101: X | I101: X | W101: 263 | X101: 2003 | Y101: 16 | Z101: DTS-HD Master Audio 6.1 | AA101: DTS-HD Master Audio 6.1 | AB101: 2.4 | AC101: 5 | AD101: Blu-ray | AE101: Lord of the Rings: The Return of the King, The | AF101: Herr der Ringe 3
A102: 101 | B102: Hobbit: Eine Unerwartete Reise, Der | C102: X | I102: X | W102: 169 | X102: 2012 | Y102: 12 | Z102: DTS-HD Master Audio 7.1 | AA102: DTS-HD Master Audio 7.1 | AB102: 2.4 | AC102: 4 | AD102: 3D Blu-ray | AE102: Hobbit: An Unexpected Journey, The | AF102: Hobbit 1
A103: 102 | B103: Hobbit: Eine unerwartete Reise, Der | C103: X | I103: X | W103: 182 | X103: 2012 | Y103: 12 | Z103: DTS-HD Master Audio 7.1 | AA103: DTS-HD Master Audio 7.1 | AB103: 2.4 | AC103: 5 | AD103: 3D Blu-ray | AE103: Hobbit: An Unexpected Journey, The | AF103: Hobbit 1
A104: 103 | B104: Hobbit: Smaugs Einöde, Der | C104: X | I104: X | W104: 186 | X104: 2013 | Y104: 12 | Z104: DTS-HD Master Audio 7.1 | AA104: DTS-HD Master Audio 7.1 | AB104: 2.4 | AC104: 5 | AD104: 3D Blu-ray | AE104: Hobbit: The Desolation of Smaug, The | AF104: Hobbit 2
A105: 104 | B105: Hobbit: Die Schlacht der fünf Heere, Der | C105: X | I105: X | W105: 164 | X105: 2014 | Y105: 12 | Z105: DTS-HD Master Audio 7.1 | AA105: DTS-HD Master Audio 7.1 | AB105: 2.4 | AC105: 5 | AD105: 3D Blu-ray | AE105: Hobbit: The Battle of the Five Armies, The | AF105: Hobbit 3
A106: 105 | B106: Hot Shots - Die Mutter Aller Filme | L106: X | W106: 82 | X106: 1991 | Y106: 6 | Z106: Dolby Digital 2.0 Surround | AA106: Dolby Digital 2.0 Surround | AB106: 1.85 | AC106: 1 | AD106: DVD | AE106: Hot Shots! | AF106: Hot Shots 1
A107: 106 | B107: Hot Shots! - Der 2. Versuch | L107: X | W107: 85 | X107: 1993 | Y107: 12 | Z107: Dolby Digital 2.0 Surround | AA107: Dolby Digital 2.0 Surround | AB107: 1.85 | AC107: 1 | AD107: DVD | AE107: Hot Shots! Part Deux | AF107: Hot Shots 2
A108: 107 | B108: Hotel Transsilvanien | E108: X | L108: X | W108: 91 | X108: 2012 | Y108: 6 | Z108: DTS-HD Master Audio 5.1 | AA108: DTS-HD Master Audio 5.1 | AB108: 1.85 | AC108: 2 | AD108: 3D Blu-ray | AE108: Hotel Transylvania | AF108: Hotel Transsilvanien 1
A109: 108 | B109: Hotel Transsilvanien 2 | E109: X | I109: X | L109: X | W109: 89 | X109: 2015 | Y109: 6 | Z109: DTS-HD Master Audio 5.1 | AA109: DTS-HD Master Audio 5.1 | AB109: 1.85 | AC109: 2 | AD109: 3D Blu-ray | AE109: Hotel Transylvania 2 | AF109: Hotel Transsilvanien 2
A110: 109 | B110: Hotel Transsilvanien 3 - Ein Monster Urlaub | E110: X | I110: X | L110: X | W110: 97 | X110: 2018 | Y110: 6 | Z110: DTS-HD Master Audio 5.1 | AA110: DTS-HD Master Audio 5.1 | AB110: 1.85 | AC110: 1 | AD110: Blu-ray | AE110: Hotel Transylvania 3: Summer Vacation | AF110: Hotel Transsilvanien 3
A111: 110 | B111: Ice Age | C111: X | E111: X | L111: X | W111: 78 | X111: 2002 | Y111: 0 | Z111: Dolby Digital 5.1 | AA111: Dolby Digital 5.1 | AB111: 1.85 | AC111: 1 | AD111: DVD | AE111: Ice Age | AF111: Ice Age 1
A112: 111 | B112: Ice Age 2 - Jetzt taut's | E112: X | L112: X | W112: 87 | X112: 2006 | Y112: 0 | Z112: DTS 5.1 | AA112: Dolby Digital 5.1 | AB112: 1.85 | AC112: 2 | AD112: DVD | AE112: Ice Age 2: The Meltdown | AF112: Ice Age 2
A113: 112 | B113: Ice Age 3 - Die Dinosaurier sind los | E113: X | L113: X | W113: 90 | X113: 2009 | Y113: 0 | Z113: Dolby Digital 5.1 | AA113: Dolby Digital 5.1 | AB113: 1.85 | AC113: 1 | AD113: DVD | AE113: Ice Age: Dawn of the Dinosaurs | AF113: Ice Age 3
A114: 113 | B114: Ice Age 4 - Voll verschoben | C114: X | E114: X | L114: X | W114: 88 | X114: 2012 | Y114: 0 | Z114: DTS 5.1 | AA114: DTS-HD Master Audio 7.1 | AB114: 2.4 | AC114: 2 | AD114: 3D Blu-ray | AE114: Ice Age: Continental Drift | AF114: Ice Age 4
A115: 114 | B115: Ich - Einfach unverbesserlich | E115: X | L115: X | W115: 95 | X115: 2010 | Y115: 0 | Z115: DTS 5.1 | AA115: DTS-HD Master Audio 5.1 | AB115: 1.85 | AC115: 3 | AD115: 3D Blu-ray | AE115: Despicable Me | AF115: Ich - einfach unverbesserlich 1
A116: 115 | B116: Ich - Einfach unverbesserlich 2 | E116: X | L116: x | W116: 98 | X116: 2013 | Y116: 0 | Z116: DTS 5.1 | AA116: DTS-HD Master Audio 5.1 | AB116: 1.85 | AC116: 2 | AD116: 3D Blu-ray | AE116: Despicable Me 2 | AF116: Ich - einfach unverbesserlich 2
A117: 116 | B117: Ich - Einfach unverbesserlich 3 | C117: X | D117: X | E117: X | L117: X | R117: X | W117: 90 | X117: 2017 | Y117: 0 | Z117: DTS-HD Master Audio 7.1 | AA117: DTS-HD Master Audio 7.1 | AB117: 2.4 | AC117: 2 | AD117: 3D Blu-ray | AE117: Despicable Me 3 | AF117: Ich - Einfach unverbesserlich 3
A118: 117 | B118: Illuminati | G118: X | N118: X | Q118: X | T118: X | W118: 140 | X118: 2009 | Y118: 16 | Z118: Dolby Digital 5.1 | AA118: Dolby Digital 5.1 | AB118: 2.4 | AC118: 2 | AD118: DVD | AE118: Angels & Demons | AF118: Illuminati
A119: 118 | B119: Im Auftrag des Teufels | G119: X | K119: X | T119: X | W119: 138 | X119: 1997 | Y119: 16 | Z119: Dolby Digital 5.1 | AA119: Dolby Digital 5.1 | AB119: 2.35 | AC119: 1 | AD119: DVD | AE119: Devil's Advocate, The | AF119: Im Auftrag des Teufels
A120: 119 | B120: Independence Day | R120: X | W120: 147 | X120: 1996 | Y120: 12 | Z120: Dolby Digital 5.1 | AA120: Dolby Digital 2.0 Surround | AB120: 2.35 | AC120: 2 | AD120: DVD | AE120: Independence Day | AF120: Independence Day
A121: 120 | B121: Indiana Jones - Jäger des verlorenen Schatzes | C121: X | D121: X | W121: 111 | X121: 1981 | Y121: 16 | Z121: Dolby Digital 2.0 Surround | AA121: Dolby Digital 5.1 | AB121: 2.35 | AC121: 1 | AD121: DVD | AE121: Raiders of the Lost Ark | AF121: Indiana Jones 1
A122: 121 | B122: Indiana Jones und der Tempel des Todes | C122: X | D122: X | W122: 114 | X122: 1984 | Y122: 16 | Z122: Dolby Digital 2.0 Surround | AA122: Dolby Digital 5.1 | AB122: 2.35 | AC122: 1 | AD122: DVD | AE122: Indiana Jones and the Temple of Doom | AF122: Indiana Jones 2
A123: 122 | B123: Indiana Jones und der letzte Kreuzzug | C123: X | D123: X | W123: 122 | X123: 1989 | Y123: 12 | Z123: Dolby Digital 2.0 Surround | AA123: Dolby Digital 5.1 | AB123: 2.35 | AC123: 1 | AD123: DVD | AE123: Indiana Jones and the Last Crusade | AF123: Indiana Jones 3
A124: 123 | B124: Insel der besonderen Kinder, Die | C124: X | I124: X | W124: 127 | X124: 2016 | Y124: 12 | Z124: DTS 5.1 | AA124: DTS-HD Master Audio 7.1 | AB124: 1.85 | AC124: 2 | AD124: 3D Blu-ray | AE124: Miss Peregrine’s Home for Peculiar Children | AF124: Insel der besonderen Kinder
A125: 124 | B125: Iron Sky | D125: x | L125: x | R125: x | W125: 93 | X125: 2012 | Y125: 12 | Z125: DTS-HD Master Audio 5.1 | AA125: DTS-HD Master Audio 5.1 | AB125: 2.4 | AC125: 1 | AD125: Blu-ray | AE125: Iron Sky | AF125: Iron Sky
A126: 125 | B126: J. Edgar | G126: X | W126: 137 | X126: 2011 | Y126: 12 | Z126: Dolby Digital 5.1 | AA126: DTS-HD Master Audio 5.1 | AB126: 2.4 | AC126: 1 | AD126: Blu-ray | AE126: J. Edgar | AF126: J. Edgar
A127: 126 | B127: Jagd Auf Roter Oktober | C127: X | D127: X | T127: X | W127: 129 | X127: 1990 | Y127: 12 | Z127: Dolby Digital 2.0 Surround | AA127: Dolby Digital 5.1 | AB127: 2.35 | AC127: 1 | AD127: DVD | AE127: Hunt for Red October, The | AF127: Jagd Auf Roter Oktober
A128: 127 | B128: Jarhead - Willkommen im Dreck | G128: X | M128: X | W128: 117 | X128: 2005 | Y128: 12 | Z128: Dolby Digital 5.1 | AA128: Dolby Digital 5.1 | AB128: 2.35 | AC128: 1 | AD128: DVD | AE128: Jarhead | AF128: Jarhead
A129: 128 | B129: Jury, Die | G129: X | T129: X | W129: 143 | X129: 1996 | Y129: 12 | Z129: Dolby Digital 5.1 | AA129: Dolby Digital 5.1 | AB129: 2.35 | AC129: 1 | AD129: DVD | AE129: A Time To Kill | AF129: Jury
A130: =A129+1 -> 129 | B130: Kanu des Manitu, Das | L130: X | U130: X | W130: 88 | X130: 2025 | Y130: 6 | Z130: Dolby Atmos 7.1.4 | AA130: - | AB130: 2.39 | AC130: 1 | AD130: Blu-ray | AE130: Kanu des Manitu, Das | AF130: Kanu des Manitu
A131: 130 | B131: Knochenjäger, Der | T131: X | W131: 114 | X131: 1999 | Y131: 16 | Z131: Dolby Digital 5.1 | AA131: Dolby Digital 5.1 | AB131: 2.35 | AC131: 1 | AD131: DVD | AE131: Bone Collector, The | AF131: Knochenjäger
A132: 131 | B132: Lara Croft: Tomb Raider | C132: X | D132: X | Q132: X | W132: 97 | X132: 2001 | Y132: 12 | Z132: DTS 5.1 | AA132: Dolby Digital 5.1 | AB132: 2.35 | AC132: 3 | AD132: DVD | AE132: Lara Croft: Tomb Raider | AF132: Lara Croft: Tomb Raider 1
A133: 132 | B133: Lara Croft: Tomb Raider - Die Wiege des Lebens | C133: X | D133: X | Q133: X | W133: 112 | X133: 2003 | Y133: 12 | Z133: DTS 5.1 | AA133: Dolby Digital 5.1 | AB133: 2.35 | AC133: 2 | AD133: DVD | AE133: Lara Croft: Tomb Raider - The Cradle of Life | AF133: Lara Croft: Tomb Raider 2
A134: 133 | B134: LEGO Movie, The | D134: X | E134: X | L134: X | W134: 100 | X134: 2014 | Y134: 0 | Z134: Dolby Digital 5.1 | AA134: DTS-HD Master Audio 5.1 | AB134: 2.4 | AC134: 2 | AD134: 3D Blu-ray | AE134: Lego Movie, The | AF134: Lego Movie 1
A135: 134 | B135: LEGO Movie 2, The | C135: X | D135: X | E135: X | I135: X | L135: X | P135: X | W135: 107 | X135: 2019 | Y135: 6 | Z135: DTS-HD Master Audio 5.1 | AA135: DTS-HD Master Audio 5.1 | AB135: 2.4 | AC135: 1 | AD135: Blu-ray | AE135: Lego Movie 2: The Second Part, The | AF135: Lego Movie 2
A136: 135 | B136: Manhattan Love Story | L136: X | O136: X | W136: 101 | X136: 2002 | Y136: 0 | Z136: Dolby Digital 5.1 | AA136: Dolby Digital 5.1 | AB136: 2.4 | AC136: 1 | AD136: DVD | AE136: Maid in Manhattan | AF136: Manhattan Love Story
A137: 136 | B137: Mars Attacks! | D137: X | I137: X | L137: X | R137: X | W137: 102 | X137: 1996 | Y137: 12 | Z137: Dolby Digital 5.1 | AA137: Dolby Digital 5.1 | AB137: 1.78 | AC137: 1 | AD137: DVD | AE137: Mars Attacks! | AF137: Mars Attacks!
A138: 137 | B138: Matrix | D138: X | R138: X | T138: X | W138: 138 | X138: 1999 | Y138: 16 | Z138: Dolby Digital 5.1 | AA138: Dolby TrueHD 5.1 | AB138: 2.4 | AC138: 1 | AD138: Blu-ray | AE138: Matrix, The | AF138: Matrix1
A139: 138 | B139: Matrix Reloaded | D139: X | R139: X | T139: X | W139: 138 | X139: 2003 | Y139: 16 | Z139: Dolby Digital 5.1 | AA139: Dolby TrueHD 5.1 | AB139: 2.4 | AC139: 1 | AD139: Blu-ray | AE139: Matrix Reloaded, The | AF139: Matrix2
A140: 139 | B140: Matrix Revolutions | D140: X | R140: X | T140: X | W140: 129 | X140: 2003 | Y140: 16 | Z140: Dolby Digital 5.1 | AA140: Dolby TrueHD 5.1 | AB140: 2.4 | AC140: 1 | AD140: Blu-ray | AE140: Matrix Revolutions, The | AF140: Matrix3
A141: 140 | B141: Mel Brooks' Spaceballs | L141: X | R141: X | W141: 92 | X141: 1987 | Y141: 12 | Z141: Dolby Digital 2.0 Surround | AA141: Dolby Digital 5.1 | AB141: 1.85 | AC141: 1 | AD141: DVD | AE141: Spaceballs | AF141: Mel Brooks' Spaceballs
A142: 141 | B142: Mel Brooks' Spaceballs | L142: X | R142: X | W142: 96 | X142: 1987 | Y142: 12 | Z142: DTS 5.1 | AA142: DTS-HD Master Audio 5.1 | AB142: 1.85 | AC142: 1 | AD142: Blu-ray | AE142: Spaceballs | AF142: Mel Brooks' Spaceballs
A143: 142 | B143: Mel Brooks' verrückte Geschichte der Welt | L143: X | W143: 92 | X143: 1981 | Y143: 16 | Z143: DTS 5.1 | AA143: DTS-HD Master Audio 5.1 | AB143: 2.35 | AC143: 1 | AD143: Blu-ray | AE143: History of the World: Part I | AF143: Mel Brooks' verrückte Geschichte der Welt
A144: 143 | B144: Men In Black | D144: X | L144: X | R144: X | W144: 94 | X144: 1997 | Y144: 12 | Z144: Dolby Digital 5.1 | AA144: Dolby Digital 5.1 | AB144: 1.85 | AC144: 1 | AD144: DVD | AE144: Men In Black | AF144: Men In Black 1
A145: 144 | B145: Men In Black 2 | L145: X | R145: X | W145: 84 | X145: 2002 | Y145: 12 | Z145: Dolby Digital 5.1 | AA145: Dolby Digital 5.1 | AB145: 1.85 | AC145: 2 | AD145: DVD | AE145: Men In Black 2 | AF145: Men In Black 2
A146: 145 | B146: Minions | E146: X | L146: X | W146: 91 | X146: 2015 | Y146: 0 | Z146: Dolby Atmos 7.1.4 | AA146: Dolby Atmos 7.1.4 | AB146: 1.85 | AC146: 2 | AD146: 3D Blu-ray | AE146: Minions | AF146: Minions
A147: 146 | B147: Miss Undercover | D147: X | L147: X | W147: 106 | X147: 2000 | Y147: 12 | Z147: Dolby Digital 5.1 | AA147: Dolby Digital 5.1 | AB147: 1.85 | AC147: 1 | AD147: DVD | AE147: Miss Congeniality | AF147: Miss Undercover 1
A148: 147 | B148: Miss Undercover 2 - Fabelhaft und bewaffnet | D148: X | L148: X | W148: 110 | X148: 2005 | Y148: 12 | Z148: Dolby Digital 5.1 | AA148: Dolby Digital 5.1 | AB148: 2.4 | AC148: 1 | AD148: DVD | AE148: Miss Congeniality 2: Armed and Fabulous | AF148: Miss Undercover 2
A149: 148 | B149: Monster AG, Die | E149: X | I149: X | L149: X | W149: 88 | X149: 2001 | Y149: 6 | Z149: Dolby Digital 5.1 | AA149: DTS 5.1 | AB149: 1.33 | AC149: 1 | AD149: DVD | AE149: Monsters, Inc. | AF149: Monster AG
A150: 149 | B150: Monster Uni, Die | C150: X | E150: X | L150: X | W150: 104 | X150: 2013 | Y150: 0 | Z150: Dolby Digital 7.1 | AA150: Dolby TrueHD 7.1 | AB150: 1.78 | AC150: 1 | AD150: Blu-ray | AE150: Monsters University | AF150: Monster Uni
A151: 150 | B151: Monty Python's Das Leben des Brian | L151: X | W151: 90 | X151: 1979 | Y151: 12 | Z151: Dolby Digital 1.0 Mono | AA151: Dolby Digital 5.1 | AB151: 1.85 | AC151: 1 | AD151: DVD | AE151: Life of Brian | AF151: Monty Python's Das Leben
A152: 151 | B152: Monty Python's Der Sinn des Lebens | L152: X | W152: 103 | X152: 1983 | Y152: 16 | Z152: DTS 5.1 | AA152: Dolby Digital 5.1 | AB152: 1.85 | AC152: 2 | AD152: DVD | AE152: Monty Python's The Meaning of Life | AF152: Monty Python's Der Sinn
A153: 152 | B153: Monty Python's Die Ritter der Kokusnuss | C153: X | L153: X | W153: 86 | X153: 1975 | Y153: 12 | Z153: Dolby Digital 1.0 Mono | AA153: Dolby Digital 5.1 | AB153: 1.85 | AC153: 2 | AD153: DVD | AE153: Monty Python and the Holy Grail | AF153: Monty Python's Die Ritter
A154: 153 | B154: Monty Python's wunderbare Welt der Schwerkraft | L154: X | W154: 85 | X154: 1971 | Y154: 12 | Z154: Dolby Digital 5.1 | AA154: Dolby Digital 1.0 Mono | AB154: 1.85 | AC154: 1 | AD154: DVD | AE154: And Now For Something Completely Different | AF154: Monty Python's wunderbare Welt
A155: 154 | B155: Moon | G155: X | Q155: X | R155: X | T155: X | W155: 93 | X155: 2009 | Y155: 12 | Z155: DTS-HD Master Audio 5.1 | AA155: DTS-HD Master Audio 5.1 | AB155: 2.4 | AC155: 1 | AD155: Blu-ray | AE155: Moon | AF155: Moon
A156: 155 | B156: Mr. & Mrs. Smith | D156: X | L156: X | W156: 115 | X156: 2005 | Y156: 12 | Z156: DTS 5.1 | AA156: Dolby Digital 5.1 | AB156: 2.35 | AC156: 1 | AD156: DVD | AE156: Mr. & Mrs. Smith | AF156: Mr. & Mrs. Smith
A157: 156 | B157: Nacht bei McCool's, Eine | L157: X | W157: 93 | X157: 2001 | Y157: 16 | Z157: Dolby Digital 5.1 | AA157: Dolby Digital 5.1 | AB157: 1.78 | AC157: 1 | AD157: DVD | AE157: One Night at McCool's | AF157: Nacht bei McCool's
A158: 157 | B158: Nackte Kanone, Die | L158: X | W158: 81 | X158: 1988 | Y158: 12 | Z158: Dolby Digital 1.0 Mono | AA158: Dolby Digital 5.1 | AB158: 1.78 | AC158: 1 | AD158: DVD | AE158: Naked Gun: From the Files of Police Squad!, The | AF158: Nackte Kanone 1
A159: 158 | B159: Nackte Kanone 2 1/2, Die | L159: X | W159: 82 | X159: 1991 | Y159: 12 | Z159: Dolby Digital 2.0 Surround | AA159: Dolby Digital 5.1 | AB159: 1.78 | AC159: 1 | AD159: DVD | AE159: Naked Gun 2 1/2: The Smell of Fear, The | AF159: Nackte Kanone 2
A160: 159 | B160: Nackte Kanone 33 1/3, Die | L160: X | W160: 79 | X160: 1994 | Y160: 12 | Z160: Dolby Digital 2.0 Surround | AA160: Dolby Digital 5.1 | AB160: 1.78 | AC160: 1 | AD160: DVD | AE160: Naked Gun 33 1/3: The final Insult | AF160: Nackte Kanone 3
A161: 160 | B161: Nackte Kanone, Die | D161: X | L161: X | W161: 85 | X161: 2025 | Y161: 12 | Z161: Dolby Digital 5.1 | AA161: Dolby Atmos 7.1.4 | AB161: 2.39 | AC161: 1 | AD161: Blu-ray | AE161: Naked Gun, The | AF161: Nackte Kanone neu 2025
A162: 161 | B162: Natural Born Killers | O162: X | T162: X | W162: 117 | X162: 1994 | Y162: 18 | Z162: Dolby Digital 5.1 | AA162: Dolby Digital 5.1 | AB162: 1.78 | AC162: 1 | AD162: DVD | AE162: Natural Born Killers | AF162: Natural Born Killers
A163: 162 | B163: Nicht Noch Ein Teenie-Film | L163: X | W163: 85 | X163: 2001 | Y163: 12 | Z163: Dolby Digital 5.1 | AA163: Dolby Digital 5.1 | AB163: 1.85 | AC163: 1 | AD163: DVD | AE163: Not Another Teen Movie | AF163: Nicht Noch Ein Teenie-Film
A164: 163 | B164: Notting Hill | L164: X | O164: X | W164: 119 | X164: 1999 | Y164: 0 | Z164: Dolby Digital 5.1 | AA164: Dolby Digital 5.1 | AB164: 2.35 | AC164: 1 | AD164: DVD | AE164: Notting Hill | AF164: Notting Hill
A165: 164 | B165: One Hour Photo | G165: X | T165: X | W165: 92 | X165: 2002 | Y165: 12 | Z165: Dolby Digital 5.1 | AA165: Dolby Digital 5.1 | AB165: 1.85 | AC165: 1 | AD165: DVD | AE165: One Hour Photo | AF165: One Hour Photo
A166: 165 | B166: Out of Sight | G166: X | L166: X | N166: X | W166: 118 | X166: 1998 | Y166: 12 | Z166: Dolby Digital 2.0 Surround | AA166: Dolby Digital 5.1 | AB166: 1.85 | AC166: 1 | AD166: DVD | AE166: Out of Sight | AF166: Out of Sight
A167: 166 | B167: Party Animals - …wilder geht's nicht! | L167: X | W167: 89 | X167: 2002 | Y167: 12 | Z167: Dolby Digital 5.1 | AA167: Dolby Digital 5.1 | AB167: 1.85 | AC167: 1 | AD167: DVD | AE167: Van Wilder | AF167: Party Animals
A168: 167 | B168: Passengers | C168: X | G168: X | O168: X | W168: 116 | X168: 2016 | Y168: 12 | Z168: DTS-HD Master Audio 5.1 | AA168: DTS-HD Master Audio 5.1 | AB168: 2.39 | AC168: 2 | AD168: 3D Blu-ray | AE168: Passengers | AF168: Passengers
A169: 168 | B169: Per Anhalter durch die Galaxis | C169: X | L169: X | R169: X | W169: 104 | X169: 2005 | Y169: 6 | Z169: Dolby Digital 5.1 | AA169: Dolby Digital 5.1 | AB169: 2.35 | AC169: 1 | AD169: DVD | AE169: Hitchhiker's Guide to the Galaxy, The | AF169: Per Anhalter
A170: 169 | B170: Pets | E170: X | L170: X | W170: 86 | X170: 2016 | Y170: 0 | Z170: Dolby Atmos 7.1.4 | AA170: Dolby Atmos 7.1.4 | AB170: 1.85 | AC170: 1 | AD170: Blu-ray | AE170: Secret Life of Pets, The | AF170: Pets1
A171: 170 | B171: Pets 2 | C171: X | E171: X | L171: X | W171: 86 | X171: 2019 | Y171: 0 | Z171: Dolby Atmos 7.1.4 | AA171: Dolby Atmos 7.1.4 | AB171: 1.85 | AC171: 2 | AD171: 3D Blu-ray | AE171: Secret Life of Pets 2, The | AF171: Pets2
A172: 171 | B172: Piraten! - Ein Haufen merkwürdiger Typen, Die | C172: X | E172: X | L172: X | W172: 88 | X172: 2012 | Y172: 0 | Z172: Dolby Digital 5.1 | AA172: DTS-HD Master Audio 5.1 | AB172: 2.35 | AC172: 1 | AD172: 3D Blu-ray | AE172: Pirates! Band of Misfits, The | AF172: Piraten!
A173: 172 | B173: Pitch Black - Planet der Finsternis | K173: X | R173: X | W173: 134 | X173: 2000 | Y173: 16 | Z173: DTS 5.1 | AA173: DTS-HD Master Audio 5.1 | AB173: 2.35 | AC173: 1 | AD173: Blu-ray | AE173: Pitch Black | AF173: Pitch Black 1
A174: 173 | B174: Riddick - Chroniken eines Kriegers | D174: X | R174: X | W174: 108 | X174: 2004 | Y174: 16 | Z174: DTS 5.1 | AA174: DTS-HD Master Audio 5.1 | AB174: 2.4 | AC174: 1 | AD174: Blu-ray | AE174: Chronicles of Riddick, The | AF174: Pitch Black 2
A175: 174 | B175: Priest | D175: X | K175: X | W175: 87 | X175: 2011 | Y175: 16 | Z175: DTS-HD Master Audio 5.1 | AA175: Dolby Digital 5.1 | AB175: 2.4 | AC175: 1 | AD175: 3D Blu-ray | AE175: Priest | AF175: Priest
A176: 175 | B176: Prometheus - Dunkle Zeichen | D176: X | K176: X | R176: X | W176: 124 | X176: 2012 | Y176: 16 | Z176: DTS 5.1 | AA176: DTS-HD Master Audio 7.1 | AB176: 2.4 | AC176: 4 | AD176: 3D Blu-ray | AE176: Prometheus | AF176: Prometheus
A177: 176 | B177: Pulp Fiction | T177: X | W177: 148 | X177: 1994 | Y177: 16 | Z177: Dolby Digital 5.1 | AA177: Dolby Digital 5.1 | AB177: 2.35 | AC177: 1 | AD177: DVD | AE177: Pulp Fiction | AF177: Pulp Fiction
A178: 177 | B178: Rango | D178: X | E178: X | L178: X | U178: X | W178: 107 | X178: 2011 | Y178: 6 | Z178: Dolby Digital 5.1 | AA178: DTS-HD Master Audio 5.1 | AB178: 2.4 | AC178: 1 | AD178: Blu-ray | AE178: Rango | AF178: Rango
A179: 178 | B179: Rapunzel - Neu verföhnt | E179: X | L179: X | O179: X | P179: X | W179: 96 | X179: 2010 | Y179: 0 | Z179: Dolby Digital 5.1 | AA179: Dolby Digital 5.1 | AB179: 1.78 | AC179: 1 | AD179: DVD | AE179: Tangled | AF179: Rapunzel
A180: 179 | B180: Rat Race - Der nackte Wahnsinn | L180: X | W180: 107 | X180: 2001 | Y180: 12 | Z180: Dolby Digital 5.1 | AA180: Dolby Digital 5.1 | AB180: 2.35 | AC180: 1 | AD180: DVD | AE180: Rat Race | AF180: Rat Race
A181: 180 | B181: RED - Älter. Härter. Besser. | D181: X | L181: X | W181: 107 | X181: 2010 | Y181: 16 | Z181: DTS 5.1 | AA181: Dolby Digital 5.1 | AB181: 2.35 | AC181: 1 | AD181: DVD | AE181: RED | AF181: RED 1
A182: 181 | B182: R.E.D. 2 - Noch Älter. Härter. Besser. | D182: X | L182: X | W182: 116 | X182: 2013 | Y182: 16 | Z182: DTS-HD Master Audio 7.1 | AA182: DTS-HD Master Audio 7.1 | AB182: 2.4 | AC182: 1 | AD182: Blu-ray | AE182: RED 2 | AF182: RED 2
A183: 182 | B183: Reine Nervensache | L183: X | W183: 99 | X183: 1999 | Y183: 12 | Z183: Dolby Digital 5.1 | AA183: Dolby Digital 5.1 | AB183: 1.85 | AC183: 1 | AD183: DVD | AE183: Analyze This | AF183: Reine Nervensache
A184: 183 | B184: Reservoir Dogs - Wilde Hunde | D184: X | T184: X | W184: 94 | X184: 1992 | Y184: 18 | Z184: Dolby Digital 5.1 | AA184: Dolby Digital 5.1 | AB184: 2.35 | AC184: 2 | AD184: DVD | AE184: Reservoir Dogs | AF184: Reservoir Dogs
A185: 184 | B185: Resident Evil | K185: X | V185: X | W185: 97 | X185: 2002 | Y185: 16 | Z185: DTS 6.1-ES | AA185: DTS 6.1-ES | AB185: 1.85 | AC185: 2 | AD185: DVD | AE185: Resident Evil | AF185: Resident Evil 1
A186: 185 | B186: Resident Evil: Apocalypse | D186: X | K186: X | W186: 94 | X186: 2004 | Y186: 18 | Z186: DTS 5.1 | AA186: Dolby Digital 5.1 | AB186: 2.4 | AC186: 2 | AD186: DVD | AE186: Resident Evil: Apocalypse | AF186: Resident Evil 2
A187: 186 | B187: Resident Evil: Extinction | D187: X | K187: X | R187: X | W187: 92 | X187: 2007 | Y187: 18 | Z187: DTS 5.1 | AA187: Dolby Digital 5.1 | AB187: 2.4 | AC187: 2 | AD187: DVD | AE187: Resident Evil: Extinction | AF187: Resident Evil 3
A188: 187 | B188: Resident Evil: Afterlife | D188: X | K188: X | R188: X | T188: X | W188: 93 | X188: 2010 | Y188: 16 | Z188: DTS 5.1 | AA188: Dolby Digital 5.1 | AB188: 2.4 | AC188: 1 | AD188: DVD | AE188: Resident Evil: Afterlife | AF188: Resident Evil 4
A189: 188 | B189: Resident Evil: Retribution | D189: X | K189: X | R189: X | T189: X | W189: 96 | X189: 2012 | Y189: 16 | Z189: DTS-HD Master Audio 5.1 | AA189: DTS-HD Master Audio 5.1 | AB189: 2.4 | AC189: 2 | AD189: 3D Blu-ray | AE189: Resident Evil: Retribution | AF189: Resident Evil 5
A190: 189 | B190: Resident Evil: The Final Chapter | D190: X | K190: X | R190: X | T190: X | W190: 107 | X190: 2016 | Y190: 16 | Z190: DTS-HD High Resolution 7.1 | AA190: DTS-HD High Resolution 7.1 | AB190: 2.4 | AC190: 2 | AD190: 3D Blu-ray | AE190: Resident Evil: The Final Chapter | AF190: Resident Evil 6
A191: 190 | B191: Riddick - Überleben ist seine Rache | D191: X | R191: X | T191: X | W191: 126 | X191: 2013 | Y191: 16 | Z191: DTS-HD Master Audio 5.1 | AA191: DTS-HD Master Audio 5.1 | AB191: 2.4 | AC191: 1 | AD191: Blu-ray | AE191: Riddick | AF191: Riddick
A192: 191 | B192: Ring | J192: X | T192: X | W192: 110 | X192: 2002 | Y192: 16 | Z192: Dolby Digital 5.1 | AA192: Dolby Digital 5.1 | AB192: 1.85 | AC192: 1 | AD192: DVD | AE192: Ring, The | AF192: Ring
A193: 192 | B193: Road Trip | L193: X | O193: X | W193: 94 | X193: 2000 | Y193: 16 | Z193: Dolby Digital 5.1 | AA193: Dolby Digital 5.1 | AB193: 1.78 | AC193: 1 | AD193: DVD | AE193: Road Trip | AF193: Road Trip
A194: =A193+1 -> 193 | B194: Robin Hood - Helden in Strumpfhosen | L194: X | W194: 100 | X194: 1993 | Y194: 6 | Z194: Dolby Digital 2.0 Surround | AA194: Dolby Digital 2.0 Surround | AB194: 1.85 | AC194: 1 | AD194: DVD | AE194: Robin Hood: Men in Tights | AF194: Robin Hood - Helden in...
A195: 194 | B195: Robots | E195: X | L195: X | R195: X | W195: 86 | X195: 2005 | Y195: 0 | Z195: Dolby Digital 5.1 | AA195: Dolby Digital 5.1 | AB195: 1.85 | AC195: 1 | AD195: DVD | AE195: Robots | AF195: Robots
A196: 195 | B196: Rock - Entscheidung auf Alcatraz, The | D196: X | T196: X | W196: 130 | X196: 1996 | Y196: 16 | Z196: Dolby Digital 5.1 | AA196: Dolby Digital 5.1 | AB196: 2.35 | AC196: 1 | AD196: DVD | AE196: Rock, The | AF196: Rock
A197: 196 | B197: Rush Hour | D197: X | L197: X | W197: 94 | X197: 1998 | Y197: 12 | Z197: Dolby Digital 5.1 | AA197: Dolby Digital 5.1 | AB197: 2.35 | AC197: 1 | AD197: DVD | AE197: Rush Hour | AF197: Rush Hour 1
A198: 197 | B198: Rush Hour 2 | D198: X | L198: X | W198: 87 | X198: 2001 | Y198: 12 | Z198: Dolby Digital 6.1 | AA198: Dolby Digital 6.1 | AB198: 2.35 | AC198: 1 | AD198: DVD | AE198: Rush Hour 2 | AF198: Rush Hour 2
A199: 198 | B199: Scary Movie | K199: X | L199: X | Q199: X | W199: 85 | X199: 2000 | Y199: 16 | Z199: DTS 5.1 | AA199: Dolby Digital 5.1 | AB199: 2.35 | AC199: 1 | AD199: DVD | AE199: Scary Movie | AF199: Scary Movie 1
A200: 199 | B200: Scary Movie 2 | D200: X | K200: X | L200: X | W200: 85 | X200: 2001 | Y200: 16 | Z200: DTS 5.1 | AA200: Dolby Digital 5.1 | AB200: 1.85 | AC200: 2 | AD200: DVD | AE200: Scary Movie 2 | AF200: Scary Movie 2
... 101 more rows

Sheet Serien
B1: Titel | C1: Abenteuer | D1: Action | E1: Animation | F1: Comedy | G1: Dokumentation | H1: Drama | I1: Erotik | J1: Fantasy | K1: Grusel | L1: Horror | M1: Komödie | N1: Krieg | O1: Krimi | P1: Liebe/Romantik | Q1: Musik | R1: Mystery | S1: Science-Fiction | T1: Splatter | U1: Thriller | V1: Western | W1: Zombies | X1: Länge | Y1: FSK | Z1: Tonformat Deutsch | AA1: Tonformat Englisch | AB1: Bildformat (x:1) | AC1: Anzahl Discs | AD1: Medientyp | AE1: Orginaltitel | AF1: Sortierschlüssel
A2: =A1+1 -> 1 | B2: Big Bang Theory, The (Season 1) | M2: X | X2: 354 | Y2: 6 | Z2: Dolby Digital 2.0 Stereo | AA2: DTS-HD Master Audio 5.1 | AB2: 1.78 | AC2: 2 | AD2: Blu-ray | AE2: Big Bang Theory, The | AF2: BigB01
A3: 2 | B3: Big Bang Theory, The (Season 2) | M3: X | X3: 502 | Y3: 6 | Z3: Dolby Digital 2.0 Stereo | AA3: DTS-HD Master Audio 5.1 | AB3: 1.78 | AC3: 2 | AD3: Blu-ray | AE3: Big Bang Theory, The | AF3: BigB02
A4: 3 | B4: Big Bang Theory, The (Season 3) | M4: X | X4: 472 | Y4: 12 | Z4: Dolby Digital 2.0 Stereo | AA4: Dolby Digital 5.1 | AB4: 1.78 | AC4: 2 | AD4: Blu-ray | AE4: Big Bang Theory, The | AF4: BigB03
A5: 4 | B5: Big Bang Theory, The (Season 4) | M5: X | X5: 501 | Y5: 12 | Z5: Dolby Digital 2.0 Stereo | AA5: DTS-HD Master Audio 5.1 | AB5: 1.78 | AC5: 2 | AD5: Blu-ray | AE5: Big Bang Theory, The | AF5: BigB04
A6: 5 | B6: Big Bang Theory, The (Season 5) | M6: X | X6: 496 | Y6: 6 | Z6: Dolby Digital 2.0 Stereo | AA6: DTS-HD Master Audio 5.1 | AB6: 1.78 | AC6: 2 | AD6: Blu-ray | AE6: Big Bang Theory, The | AF6: BigB05
A7: 6 | B7: Big Bang Theory, The (Season 6) | M7: X | X7: 496 | Y7: 12 | Z7: Dolby Digital 2.0 Stereo | AA7: DTS-HD Master Audio 5.1 | AB7: 1.78 | AC7: 2 | AD7: Blu-ray | AE7: Big Bang Theory, The | AF7: BigB06
A8: 7 | B8: Big Bang Theory, The (Season 7) | M8: X | X8: 485 | Y8: 6 | Z8: Dolby Digital 5.1 | AA8: DTS-HD Master Audio 5.1 | AB8: 1.78 | AC8: 2 | AD8: Blu-ray | AE8: Big Bang Theory, The | AF8: BigB07
A9: 8 | B9: Big Bang Theory, The (Season 8) | M9: X | X9: 478 | Y9: 12 | Z9: Dolby Digital 5.1 | AA9: DTS-HD Master Audio 5.1 | AB9: 1.78 | AC9: 2 | AD9: Blu-ray | AE9: Big Bang Theory, The | AF9: BigB08
A10: 9 | B10: Big Bang Theory, The (Season 9) | M10: X | X10: 467 | Y10: 6 | Z10: Dolby Digital 5.1 | AA10: DTS-HD Master Audio 5.1 | AB10: 1.78 | AC10: 2 | AD10: Blu-ray | AE10: Big Bang Theory, The | AF10: BigB09
A11: 10 | B11: Big Bang Theory, The (Season 10) | M11: X | X11: 485 | Y11: 12 | Z11: Dolby Digital 5.1 | AA11: DTS-HD Master Audio 5.1 | AB11: 1.78 | AC11: 2 | AD11: Blu-ray | AE11: Big Bang Theory, The | AF11: BigB10
A12: 11 | B12: Big Bang Theory, The (Season 11) | M12: X | X12: 480 | Y12: 12 | Z12: Dolby Digital 5.1 | AA12: DTS-HD Master Audio 5.1 | AB12: 1.78 | AC12: 2 | AD12: Blu-ray | AE12: Big Bang Theory, The | AF12: BigB11
A13: 12 | B13: Big Bang Theory, The (Season 12) | M13: X | X13: 480 | Y13: 6 | Z13: Dolby Digital 5.1 | AA13: DTS-HD Master Audio 5.1 | AB13: 1.78 | AC13: 2 | AD13: Blu-ray | AE13: Big Bang Theory, The | AF13: BigB12
A14: 13 | B14: Buffy - Im Bann der Dämonen (Season 1) | H14: X | L14: X | M14: X | X14: 528 | Y14: 16 | Z14: Dolby Digital 2.0 Surround | AA14: Dolby Digital 2.0 Surround | AB14: 1.33 | AC14: 3 | AD14: DVD | AE14: Buffy the Vampire Slayer | AF14: Buff01
A15: 14 | B15: Buffy - Im Bann der Dämonen (Season 2.1) | H15: X | L15: X | M15: X | X15: 528 | Y15: 16 | Z15: Dolby Digital 2.0 Surround | AA15: Dolby Digital 2.0 Surround | AB15: 1.33 | AC15: 3 | AD15: DVD | AE15: Buffy the Vampire Slayer | AF15: Buff02
A16: 15 | B16: Buffy - Im Bann der Dämonen (Season 2.2) | H16: X | L16: X | M16: X | X16: 435 | Y16: 16 | Z16: Dolby Digital 2.0 Surround | AA16: Dolby Digital 2.0 Surround | AB16: 1.33 | AC16: 3 | AD16: DVD | AE16: Buffy the Vampire Slayer | AF16: Buff03
A17: 16 | B17: Buffy - Im Bann der Dämonen (Season 3.1) | H17: X | L17: X | M17: X | X17: 495 | Y17: 16 | Z17: Dolby Digital 2.0 Surround | AA17: Dolby Digital 2.0 Surround | AB17: 1.33 | AC17: 3 | AD17: DVD | AE17: Buffy the Vampire Slayer | AF17: Buff04
A18: 17 | B18: Buffy - Im Bann der Dämonen (Season 3.2) | H18: X | L18: X | M18: X | X18: 495 | Y18: 16 | Z18: Dolby Digital 2.0 Surround | AA18: Dolby Digital 2.0 Surround | AB18: 1.33 | AC18: 3 | AD18: DVD | AE18: Buffy the Vampire Slayer | AF18: Buff05
A19: 18 | B19: Buffy - Im Bann der Dämonen (Season 4.1) | H19: X | L19: X | M19: X | X19: 495 | Y19: 16 | Z19: Dolby Digital 2.0 Surround | AA19: Dolby Digital 2.0 Surround | AB19: 1.78 | AC19: 3 | AD19: DVD | AE19: Buffy the Vampire Slayer | AF19: Buff06
A20: 19 | B20: Buffy - Im Bann der Dämonen (Season 4.2) | H20: X | L20: X | M20: X | X20: 495 | Y20: 16 | Z20: Dolby Digital 2.0 Surround | AA20: Dolby Digital 2.0 Surround | AB20: 1.78 | AC20: 3 | AD20: DVD | AE20: Buffy the Vampire Slayer | AF20: Buff07
A21: 20 | B21: Buffy - Im Bann der Dämonen (Season 5.1) | H21: X | L21: X | M21: X | X21: 495 | Y21: 16 | Z21: Dolby Digital 2.0 Surround | AA21: Dolby Digital 2.0 Surround | AB21: 1.78 | AC21: 3 | AD21: DVD | AE21: Buffy the Vampire Slayer | AF21: Buff08
A22: 21 | B22: Buffy - Im Bann der Dämonen (Season 5.2) | H22: X | L22: X | M22: X | X22: 495 | Y22: 16 | Z22: Dolby Digital 2.0 Surround | AA22: Dolby Digital 2.0 Surround | AB22: 1.78 | AC22: 3 | AD22: DVD | AE22: Buffy the Vampire Slayer | AF22: Buff09
A23: 22 | B23: Buffy - Im Bann der Dämonen (Season 6.1) | H23: X | L23: X | M23: X | X23: 495 | Y23: 16 | Z23: Dolby Digital 2.0 Surround | AA23: Dolby Digital 2.0 Surround | AB23: 1.78 | AC23: 3 | AD23: DVD | AE23: Buffy the Vampire Slayer | AF23: Buff10
A24: 23 | B24: Buffy - Im Bann der Dämonen (Season 6.2) | H24: X | L24: X | M24: X | X24: 495 | Y24: 16 | Z24: Dolby Digital 2.0 Surround | AA24: Dolby Digital 2.0 Surround | AB24: 1.78 | AC24: 3 | AD24: DVD | AE24: Buffy the Vampire Slayer | AF24: Buff11
A25: 24 | B25: Buffy - Im Bann der Dämonen (Season 7.1) | H25: X | L25: X | M25: X | X25: 479 | Y25: 16 | Z25: Dolby Digital 2.0 Surround | AA25: Dolby Digital 2.0 Surround | AB25: 1.78 | AC25: 3 | AD25: DVD | AE25: Buffy the Vampire Slayer | AF25: Buff12
A26: 25 | B26: Buffy - Im Bann der Dämonen (Season 7.2) | H26: X | L26: X | M26: X | X26: 479 | Y26: 16 | Z26: Dolby Digital 2.0 Surround | AA26: Dolby Digital 2.0 Surround | AB26: 1.78 | AC26: 3 | AD26: DVD | AE26: Buffy the Vampire Slayer | AF26: Buff13
A27: 26 | B27: Bullyparade | F27: X | X27: 220 | Y27: 12 | Z27: Dolby Digital 5.1 | AA27: - | AB27: 1.33 | AC27: 2 | AD27: DVD | AE27: Welcome To The Fabulous Bullyparade | AF27: Bully
A28: 27 | B28: Doctor Who - Die kompletten Specials | C28: X | S28: X | X28: 305 | Y28: 12 | Z28: DTS-HD High Resolution 5.1 | AA28: DTS-HD High Resolution 5.1 | AB28: 1.78 | AC28: 5 | AD28: Blu-ray | AE28: Doctor Who | AF28: Doctor Who Specials
A29: 28 | B29: EUReKA - Die geheime Stadt | M29: X | R29: X | S29: X | X29: 3391 | Y29: 12 | Z29: DTS-HD High Resolution 5.1 | AA29: DTS-HD Master Audio 5.1 | AB29: 1.78 | AC29: 18 | AD29: Blu-ray | AE29: Eureka | AF29: Eureka
A30: 29 | B30: Futurama (Season 1) | E30: X | M30: X | S30: X | X30: 299 | Y30: 12 | Z30: Dolby Digital 2.0 Surround | AA30: Dolby Digital 2.0 Surround | AB30: 1.33 | AC30: 3 | AD30: DVD | AE30: Futurama | AF30: Futu01
A31: 30 | B31: Futurama (Season 2) | E31: X | M31: X | S31: X | X31: 437 | Y31: 12 | Z31: Dolby Digital 2.0 Surround | AA31: Dolby Digital 2.0 Surround | AB31: 1.33 | AC31: 4 | AD31: DVD | AE31: Futurama | AF31: Futu02
A32: 31 | B32: Futurama (Season 3) | E32: X | M32: X | S32: X | X32: 459 | Y32: 12 | Z32: Dolby Digital 2.0 Surround | AA32: Dolby Digital 2.0 Surround | AB32: 1.33 | AC32: 4 | AD32: DVD | AE32: Futurama | AF32: Futu03
A33: 32 | B33: Futurama (Season 4) | E33: X | M33: X | S33: X | X33: 414 | Y33: 12 | Z33: Dolby Digital 2.0 Surround | AA33: Dolby Digital 2.0 Surround | AB33: 1.33 | AC33: 4 | AD33: DVD | AE33: Futurama | AF33: Futu04
A34: =A33+1 -> 33 | B34: Futurama (Season 5) | E34: X | M34: X | S34: X | X34: 270 | Y34: 12 | Z34: Dolby Digital 2.0 Surround | AA34: Dolby Digital 5.1 | AB34: 1.78 | AC34: 2 | AD34: DVD | AE34: Futurama | AF34: Futu05
A35: 34 | B35: Futurama (Season 6) | E35: X | M35: X | S35: X | X35: 270 | Y35: 12 | Z35: Dolby Digital 2.0 Surround | AA35: Dolby Digital 5.1 | AB35: 1.78 | AC35: 2 | AD35: DVD | AE35: Futurama | AF35: Futu06
A36: 35 | B36: Futurama (Season 7) | E36: X | M36: X | S36: X | X36: 270 | Y36: 12 | Z36: Dolby Digital 5.1 | AA36: Dolby Digital 5.1 | AB36: 1.78 | AC36: 2 | AD36: DVD | AE36: Futurama | AF36: Futu07
A37: 36 | B37: Futurama (Season 8) | E37: X | M37: X | S37: X | X37: 270 | Y37: 12 | Z37: Dolby Digital 5.1 | AA37: Dolby Digital 5.1 | AB37: 1.78 | AC37: 2 | AD37: DVD | AE37: Futurama | AF37: Futu08
A38: 37 | B38: Jochen Malmsheimer - …fast das Gesamtwerk | F38: X | X38: 420 | Y38: 0 | Z38: Dolby Digital 2.0 Stereo | AA38: - | AB38: 1.78 | AC38: 2 | AD38: DVD | AE38: Jochen Malmsheimer - …fast das Gesamtwerk | AF38: JochMalm1
A39: 38 | B39: Jochen Malmsheimer - …fast das Gesamtwerk - 1. Nachlieferung! | F39: X | X39: 340 | Y39: 0 | Z39: Dolby Digital 2.0 Stereo | AA39: - | AB39: 1.78 | AC39: 2 | AD39: DVD | AE39: Jochen Malmsheimer - …fast das Gesamtwerk - 1. Nachlieferung! | AF39: JochMalm2
A40: 39 | B40: Loriot - Die vollständige Fernsehedition | M40: X | X40: 760 | Y40: 6 | Z40: Dolby Digital 2.0 Stereo | AA40: - | AB40: 1.33 | AC40: 6 | AD40: DVD | AE40: Loriot | AF40: Loriot
A41: 40 | B41: Nackte Pistole!, Die | M41: X | X41: 144 | Y41: 12 | Z41: Dolby Digital 1.0 Mono | AA41: Dolby Digital 5.1 | AB41: 1.33 | AC41: 1 | AD41: DVD | AE41: Police Squad! | AF41: Police
A42: 41 | B42: Star Trek: Enterprise | C42: X | D42: X | S42: X | X42: 4121 | Y42: 12 | Z42: Dolby Digital 2.0 Surround | AA42: DTS-HD Master Audio 7.1 | AB42: 1.78 | AC42: 24 | AD42: Blu-ray | AE42: Star Trek: Enterprise | AF42: Star Trek ENT
A43: 42 | B43: Star Trek: Lower Decks (Season 1) | C43: X | M43: X | S43: X | X43: 251 | Y43: 16 | Z43: Dolby Digital 5.1 | AA43: Dolby Digital 5.1 | AB43: 1.78 | AC43: 2 | AD43: Blu-ray | AE43: Star Trek: Lower Decks | AF43: Star Trek LD 1
A44: 43 | B44: Star Trek: Lower Decks (Season 2) | C44: X | M44: X | S44: X | X44: 255 | Y44: 16 | Z44: Dolby Digital 5.1 | AA44: Dolby Digital 5.1 | AB44: 1.78 | AC44: 2 | AD44: Blu-ray | AE44: Star Trek: Lower Decks | AF44: Star Trek LD 2
A45: 44 | B45: Star Trek: Lower Decks (Season 3) | C45: X | M45: X | S45: X | X45: 246 | Y45: 12 | Z45: Dolby Digital 5.1 | AA45: DTS-HD High Resolution 5.1 | AB45: 1.78 | AC45: 2 | AD45: Blu-ray | AE45: Star Trek: Lower Decks | AF45: Star Trek LD 3
A46: 45 | B46: Star Trek: Lower Decks (Season 4) | C46: X | M46: X | S46: X | X46: 256 | Y46: 12 | Z46: Dolby Digital 5.1 | AA46: DTS-HD High Resolution 5.1 | AB46: 1.78 | AC46: 2 | AD46: Blu-ray | AE46: Star Trek: Lower Decks | AF46: Star Trek LD 4
A47: 46 | B47: Star Trek: Lower Decks (Season 5) | C47: X | M47: X | S47: X | X47: 266 | Y47: 16 | Z47: Dolby Digital 5.1 | AA47: DTS-HD Master Audio 5.1 | AB47: 1.78 | AC47: 2 | AD47: Blu-ray | AE47: Star Trek: Lower Decks | AF47: Star Trek LD 5
A48: 47 | B48: Star Trek: Picard (Season 1) | H48: X | S48: X | X48: 487 | Y48: 16 | Z48: Dolby Digital 5.1 | AA48: DTS-HD Master Audio 5.1 | AB48: 2.39 | AC48: 3 | AD48: Blu-ray | AE48: Star Trek: Picard | AF48: Star Trek PIC 1
A49: 48 | B49: Star Trek: Picard (Season 2) | H49: X | S49: X | X49: 474 | Y49: 12 | Z49: Dolby Digital 5.1 | AA49: DTS-HD Master Audio 5.1 | AB49: 2.39 | AC49: 3 | AD49: Blu-ray | AE49: Star Trek: Picard | AF49: Star Trek PIC 2
A50: 49 | B50: Star Trek: Picard (Season 3) | H50: X | S50: X | X50: 532 | Y50: 16 | Z50: Dolby Digital 5.1 | AA50: DTS-HD Master Audio 5.1 | AB50: 2.39 | AC50: 3 | AD50: Blu-ray | AE50: Star Trek: Picard | AF50: Star Trek PIC 3
A51: 50 | B51: Star Trek - The Next Generation | S51: X | X51: 8073 | Y51: 12 | Z51: Dolby Digital 1.0 Mono | AA51: DTS-HD Master Audio 7.1 | AB51: 1.33 | AC51: 41 | AD51: Blu-ray | AE51: Star Trek: The Next Generation | AF51: Star Trek TNG
A52: 51 | B52: Unser Kosmos - Die Reise geht weiter | G52: X | X52: 572 | Y52: 0 | Z52: Dolby Digital 2.0 Surround | AA52: Dolby Digital 5.1 | AB52: 1.78 | AC52: 4 | AD52: DVD | AE52: Cosmos: A SpaceTime Odyssey | AF52: Unser
A53: 52 | B53: Unser Universum (Teil 1) | G53: X | X53: 141 | Y53: 6 | Z53: Dolby Digital 5.1 | AA53: Dolby Digital 5.1 | AB53: 1.78 | AC53: 2 | AD53: DVD | AE53: Known Universe | AF53: Unve1
A54: 53 | B54: Unser Universum (Teil 2) | G54: X | X54: 141 | Y54: 6 | Z54: Dolby Digital 5.1 | AA54: Dolby Digital 5.1 | AB54: 1.78 | AC54: 2 | AD54: DVD | AE54: Known Universe | AF54: Unve2
A55: 54 | B55: Unser Universum (Teil 3) | G55: X | X55: 180 | Y55: 6 | Z55: Dolby Digital 5.1 | AA55: Dolby Digital 5.1 | AB55: 1.78 | AC55: 1 | AD55: DVD | AE55: Known Universe | AF55: Unve3
A56: 55 | B56: Unser Universum (Teil 4) | G56: X | X56: 180 | Y56: 6 | Z56: Dolby Digital 5.1 | AA56: Dolby Digital 5.1 | AB56: 1.78 | AC56: 1 | AD56: DVD | AE56: Known Universe | AF56: Unve4
A57: 56
A58: 57
A59: 58
A60: 59
A61: 60
A62: 61
A63: 62
A64: 63
A65: 64
A66: =A65+1 -> 65
A67: 66
A68: 67
A69: 68
A70: 69
A71: 70
A72: 71
A73: 72
A74: 73
A75: 74
A76: 75
A77: 76
A78: 77
A79: 78
A80: 79
A81: 80
A82: 81
A83: 82
A84: 83
A85: 84
A86: 85
A87: 86
A88: 87
A89: 88
A90: 89
A91: 90
A92: 91
A93: 92
A94: 93
A95: 94
A96: 95
A97: 96
A98: 97
A99: 98
A100: 99
A101: 100

Sheet Anime
B1: Titel | C1: Abenteuer | D1: Action | E1: Comedy | F1: Drama | G1: Erotik | H1: Fantasy | I1: Grusel | J1: Historienfilm | K1: Horror | L1: Komödie | M1: Krieg | N1: Krimi | O1: Liebe/Romantik | P1: Musik | Q1: Mystery | R1: Science-Fiction | S1: Splatter | T1: Thriller | U1: Western | V1: Zombies | W1: Länge | X1: FSK | Y1: Tonformat Deutsch | Z1: Tonformat Japanisch | AA1: Bildformat (x:1) | AB1: Anzahl Discs | AC1: Medientyp | AD1: Orginaltitel | AE1: Sortierschlüssel
A2: =A1+1 -> 1 | B2: Akuma no Riddle | D2: X | W2: 325 | X2: 16 | Y2: DTS-HD Master Audio 2.0 | Z2: DTS-HD Master Audio 2.0 | AA2: 1.78 | AB2: 4 | AC2: Blu-ray | AD2: Akuma no ridoru | AE2: Akuma1.0
A3: 2 | B3: And You Thought There Is Never a Girl Online? | L3: X | O3: X | W3: 300 | X3: 16 | Y3: DTS-HD Master Audio 5.1 | Z3: LPCM 2.0 | AA3: 1.78 | AB3: 3 | AC3: Blu-ray | AD3: Netoge no yome wa onnanoko ja nai to omotta? | AE3: Andyou1.0
A4: 3 | B4: Another | K4: X | W4: 325 | X4: 16 | Y4: DTS-HD Master Audio 2.0 | Z4: DTS-HD Master Audio 2.0 | AA4: 1.78 | AB4: 4 | AC4: Blu-ray | AD4: Anazā | AE4: Another1.0
A5: 4 | B5: Arifureta: From Commonplace to World's Strongest - Season 1 | C5: X | D5: X | H5: X | L5: X | O5: X | W5: 330 | X5: 16 | Y5: DTS-HD Master Audio 2.0 | Z5: DTS-HD Master Audio 2.0 | AA5: 1.78 | AB5: 3 | AC5: Blu-ray | AD5: Arifureta shokugyō de sekai saikyō | AE5: Arifureta1.0
A6: 5 | B6: Arifureta: From Commonplace to World's Strongest 2nd Season | C6: X | D6: X | H6: X | L6: X | O6: X | W6: 354 | X6: 16 | Y6: DTS-HD Master Audio 2.0 | Z6: DTS-HD Master Audio 2.0 | AA6: 1.78 | AB6: 3 | AC6: Blu-ray | AD6: Arifureta shokugyō de sekai saikyō 2nd season | AE6: Arifureta2.0
A7: 6 | B7: Arifureta: From Commonplace to World's Strongest Season 3 | C7: X | D7: X | H7: X | L7: X | O7: X | W7: =120+120+144 -> 384 | X7: 16 | Y7: DTS-HD Master Audio 2.0 | Z7: DTS-HD Master Audio 2.0 | AA7: 1.78 | AB7: =1+1+1 -> 3 | AC7: Blu-ray | AD7: Arifureta shokugyō de sekai saikyō season 3 | AE7: Arifureta3.0
A8: 7 | B8: Beheneko: Ich bin ein mächtiger Behemoth und lebe als Kätzchen bei einer Elfe | C8: X | D8: X | G8: X | H8: X | L8: X | W8: =96+96+96 -> 288 | X8: 16 | Y8: DTS-HD Master Audio 2.0 | Z8: DTS-HD Master Audio 2.0 | AA8: 1.78 | AB8: =1+1+1 -> 3 | AC8: Blu-ray | AD8: S-ranku monsutâ no "behîmosu" dakedo, neko to machigawarete erufu musume no kishi (petto) to shite kurashitemasu | AE8: Beheneko1.0
A9: 8 | B9: Beyond the Boundary: Kyokai no Kanata | H9: X | Q9: X | W9: 325 | X9: 12 | Y9: DTS-HD Master Audio 2.0 | Z9: DTS-HD Master Audio 2.0 | AA9: 1.78 | AB9: 4 | AC9: Blu-ray | AD9: Kyōkai no kanata | AE9: Beyondthe1.0
A10: 9 | B10: B Gata H Kei - Vol. 1 | G10: X | L10: X | O10: X | W10: 150 | X10: 16 | Y10: DTS-HD Master Audio 2.0 | Z10: DTS-HD Master Audio 2.0 | AA10: 1.78 | AB10: 1 | AC10: Blu-ray | AD10: B-gata H-kei | AE10: BGata1.1
A11: 10 | B11: B Gata H Kei - Vol. 2 | G11: X | L11: X | O11: X | W11: 150 | X11: 16 | Y11: DTS-HD Master Audio 2.0 | Z11: DTS-HD Master Audio 2.0 | AA11: 1.78 | AB11: 1 | AC11: Blu-ray | AD11: B-gata H-kei | AE11: BGata1.2
A12: 11 | B12: Bloom Into You | F12: X | O12: X | W12: 308 | X12: 0 | Y12: DTS-HD Master Audio 5.1 | Z12: DTS-HD Master Audio 2.0 | AA12: 1.78 | AB12: 3 | AC12: Blu-ray | AD12: Yagate kimi ni naru | AE12: Bloom1.0
A13: 12 | B13: Burst Angel | R13: X | W13: 650 | X13: 16 | Y13: DTS-HD Master Audio 5.1 | Z13: DTS-HD High Resolution 5.1 | AA13: 1.78 | AB13: 3 | AC13: Blu-ray | AD13: Bakuretsu tenshi | AE13: Burst1.0
A14: 13 | B14: A Chivalry of a Failed Knight | D14: X | H14: X | O14: X | W14: 272 | X14: 16 | Y14: Dolby Digital 5.1 | Z14: Dolby Digital 2.0 Stereo | AA14: 1.78 | AB14: 3 | AC14: DVD | AD14: Rakudai kishi no kyabarurii | AE14: Chivalry1.0
A15: 14 | B15: citrus | F15: X | L15: X | O15: X | W15: 300 | X15: 12 | Y15: Dolby Digital 2.0 Stereo | Z15: Dolby Digital 2.0 Stereo | AA15: 1.78 | AB15: 3 | AC15: Blu-ray | AD15: citrus | AE15: citrus1.0
A16: 15 | B16: Demon Slave - The Chained Soldier - Vol. 1 | D16: X | F16: X | G16: X | H16: X | L16: X | W16: 150 | X16: 16 | Y16: DTS-HD Master Audio 2.0 | Z16: DTS-HD Master Audio 2.0 | AA16: 1.78 | AB16: 1 | AC16: Blu-ray | AD16: Mato Seihei no Slave | AE16: DemonSlave1.1
A17: 16 | B17: Demon Slave - The Chained Soldier - Vol. 2 | D17: X | F17: X | G17: X | H17: X | L17: X | W17: 150 | X17: 16 | Y17: DTS-HD Master Audio 2.0 | Z17: DTS-HD Master Audio 2.0 | AA17: 1.78 | AB17: 1 | AC17: Blu-ray | AD17: Mato Seihei no Slave | AE17: DemonSlave1.2
A18: 17 | B18: Die rothaarige Schneeprinzessin | H18: X | O18: X | W18: 582 | X18: 12 | Y18: DTS-HD Master Audio 5.1 | Z18: DTS-HD Master Audio 2.0 | AA18: 1.78 | AB18: 6 | AC18: Blu-ray | AD18: Akagami no Shirayukihime | AE18: DieRothaar1.0
A19: 18 | B19: Die Tagebücher der Apothekerin - Season 1 | F19: X | J19: X | L19: X | W19: =150+150+150+150 -> 600 | X19: 12 | Y19: Dolby TrueHD 2.0 | Z19: Dolby TrueHD 2.0 | AA19: 1.78 | AB19: 4 | AC19: Blu-ray | AD19: Kusuriya no Hitorigoto | AE19: DieTageb1.0
A20: 19 | B20: Dog & Scissors - Vol. 1 | L20: X | Q20: X | W20: 150 | X20: 12 | Y20: DTS-HD Master Audio 2.0 | Z20: DTS-HD Master Audio 2.0 | AA20: 1.78 | AB20: 1 | AC20: Blu-ray | AD20: Inu to Hasami wa Tsukaiyō | AE20: Dog1.1
A21: 20 | B21: Dog & Scissors - Vol. 2 | L21: X | Q21: X | W21: 150 | X21: 12 | Y21: DTS-HD Master Audio 2.0 | Z21: DTS-HD Master Audio 2.0 | AA21: 1.78 | AB21: 1 | AC21: Blu-ray | AD21: Inu to Hasami wa Tsukaiyō | AE21: Dog1.2
A22: 21 | B22: Domestic Girlfriend - Vol. 1 | F22: X | G22: X | L22: X | O22: X | W22: 150 | X22: 16 | Y22: Dolby Digital 2.0 Stereo | Z22: Dolby Digital 2.0 Stereo | AA22: 1.78 | AB22: 1 | AC22: Blu-ray | AD22: Domesutikku na kanojo | AE22: Domes1.1
A23: 22 | B23: Domestic Girlfriend - Vol. 2 | F23: X | G23: X | L23: X | O23: X | W23: 150 | X23: 16 | Y23: Dolby Digital 2.0 Stereo | Z23: Dolby Digital 2.0 Stereo | AA23: 1.78 | AB23: 1 | AC23: Blu-ray | AD23: Domesutikku na kanojo | AE23: Domes1.2
A24: 23 | B24: Dungeon People | C24: X | F24: X | H24: X | L24: X | W24: =146+145 -> 291 | X24: 12 | Y24: DTS-HD Master Audio 5.1 | Z24: DTS-HD Master Audio 2.0 | AA24: 1.78 | AB24: 2 | AC24: Blu-ray | AD24: Danjon no Naka no Hito | AE24: DungeonP1.0
A25: 24 | B25: Dusk Maiden of Amnesia | O25: X | Q25: X | W25: 325 | X25: 16 | Y25: DTS-HD Master Audio 2.0 | Z25: DTS-HD Master Audio 2.0 | AA25: 1.78 | AB25: 2 | AC25: Blu-ray | AD25: Tasogare otome × amunejia | AE25: DuskM1.0
A26: 25 | B26: Eromanga Sensei - Vol. 1 | L26: X | O26: X | W26: 175 | X26: 16 | Y26: DTS-HD Master Audio 2.0 | Z26: DTS-HD Master Audio 2.0 | AA26: 1.78 | AB26: 1 | AC26: Blu-ray | AD26: Eromanga-sensei | AE26: Eromanga1.1
A27: 26 | B27: Eromanga Sensei - Vol. 2 | L27: X | O27: X | W27: 175 | X27: 16 | Y27: DTS-HD Master Audio 2.0 | Z27: DTS-HD Master Audio 2.0 | AA27: 1.78 | AB27: 1 | AC27: Blu-ray | AD27: Eromanga-sensei | AE27: Eromanga1.2
A28: 27 | B28: Expelled from Paradise | D28: X | R28: X | W28: 104 | X28: 12 | Y28: DTS-HD Master Audio 5.1 | Z28: DTS-HD Master Audio 5.1 | AA28: 1.78 | AB28: 1 | AC28: Blu-ray | AD28: Rakuen tsuihō: Expelled from paradise | AE28: Expelled
A29: 28 | B29: Gabriel DropOut | H29: X | L29: X | W29: 300 | X29: 12 | Y29: Dolby Digital 2.0 Stereo | Z29: Dolby Digital 2.0 Stereo | AA29: 1.78 | AB29: 3 | AC29: Blu-ray | AD29: Gavurīru Doroppuauto | AE29: Gabriel1.0
A30: 29 | B30: Grenadier | C30: X | L30: X | W30: 300 | X30: 16 | Y30: Dolby Digital 2.0 Stereo | Z30: Dolby Digital 2.0 Stereo | AA30: 1.78 | AB30: 3 | AC30: DVD | AD30: Gurenēdā – Hohoemi no Senshi | AE30: Grenadier1.0
A31: 30 | B31: Gushing over Magical Girls | D31: X | G31: X | H31: X | L31: X | W31: =96+96+120 -> 312 | X31: 16 | Y31: DTS-HD Master Audio 2.0 | Z31: DTS-HD Master Audio 2.0 | AA31: 1.78 | AB31: 3 | AC31: Blu-ray | AD31: Mahō Shōjo ni Akogarete | AE31: Gushing1.0
A32: 31 | B32: Hensuki: Are You Willing to Fall in Love With a Pervert, As Long As She's a Cutie? | L32: X | O32: X | W32: 300 | X32: 16 | Y32: DTS-HD Master Audio 2.0 | Z32: DTS-HD Master Audio 2.0 | AA32: 1.78 | AB32: 3 | AC32: Blu-ray | AD32: Kawaikereba hentai demo suki ni natte kuremasu ka? | AE32: Hensuki1.0
A33: 32 | B33: Higehiro: After Being Rejected, I Shaved and Took in a High School Runaway - Vol. 1 | F33: X | L33: X | O33: X | W33: 150 | X33: 16 | Y33: DTS-HD Master Audio 2.0 | Z33: DTS-HD Master Audio 2.0 | AA33: 1.78 | AB33: 1 | AC33: Blu-ray | AD33: Hige o Soru. Soshite Joshi Kōsei o Hirou. | AE33: Higehiro1.1
A34: 33 | B34: Higehiro: After Being Rejected, I Shaved and Took in a High School Runaway - Vol. 2 | F34: X | L34: X | O34: X | W34: 175 | X34: 16 | Y34: DTS-HD Master Audio 2.0 | Z34: DTS-HD Master Audio 2.0 | AA34: 1.78 | AB34: 1 | AC34: Blu-ray | AD34: Hige o Soru. Soshite Joshi Kōsei o Hirou. | AE34: Higehiro1.2
A35: 34 | B35: High School DxD - Vol. 1 | D35: X | G35: X | H35: X | L35: X | W35: 75 | X35: 16 | Y35: DTS-HD Master Audio 2.0 | Z35: DTS-HD Master Audio 2.0 | AA35: 1.78 | AB35: 1 | AC35: Blu-ray | AD35: Haisukūru D×D | AE35: High1.1
A36: 35 | B36: High School DxD - Vol. 2 | D36: X | G36: X | H36: X | L36: X | W36: 75 | X36: 16 | Y36: DTS-HD Master Audio 2.0 | Z36: DTS-HD Master Audio 2.0 | AA36: 1.78 | AB36: 1 | AC36: Blu-ray | AD36: Haisukūru D×D | AE36: High1.2
A37: 36 | B37: High School DxD - Vol. 3 | D37: X | G37: X | H37: X | L37: X | W37: 75 | X37: 16 | Y37: DTS-HD Master Audio 2.0 | Z37: DTS-HD Master Audio 2.0 | AA37: 1.78 | AB37: 1 | AC37: Blu-ray | AD37: Haisukūru D×D | AE37: High1.3
A38: 37 | B38: High School DxD - Vol. 4 | D38: X | G38: X | H38: X | L38: X | W38: 75 | X38: 16 | Y38: DTS-HD Master Audio 2.0 | Z38: DTS-HD Master Audio 2.0 | AA38: 1.78 | AB38: 1 | AC38: Blu-ray | AD38: Haisukūru D×D | AE38: High1.4
A39: 38 | B39: High School DxD New - Vol. 1 | D39: X | G39: X | H39: X | L39: X | W39: 75 | X39: 16 | Y39: DTS-HD Master Audio 2.0 | Z39: DTS-HD Master Audio 2.0 | AA39: 1.78 | AB39: 1 | AC39: Blu-ray | AD39: Haisukūru D×D New | AE39: High2.1
A40: 39 | B40: High School DxD New - Vol. 2 | D40: X | G40: X | H40: X | L40: X | W40: 75 | X40: 16 | Y40: DTS-HD Master Audio 2.0 | Z40: DTS-HD Master Audio 2.0 | AA40: 1.78 | AB40: 1 | AC40: Blu-ray | AD40: Haisukūru D×D New | AE40: High2.2
A41: 40 | B41: High School DxD New - Vol. 3 | D41: X | G41: X | H41: X | L41: X | W41: 75 | X41: 16 | Y41: DTS-HD Master Audio 2.0 | Z41: DTS-HD Master Audio 2.0 | AA41: 1.78 | AB41: 1 | AC41: Blu-ray | AD41: Haisukūru D×D New | AE41: High2.3
A42: 41 | B42: High School DxD New - Vol. 4 | D42: X | G42: X | H42: X | L42: X | W42: 75 | X42: 16 | Y42: DTS-HD Master Audio 2.0 | Z42: DTS-HD Master Audio 2.0 | AA42: 1.78 | AB42: 1 | AC42: Blu-ray | AD42: Haisukūru D×D New | AE42: High2.4
A43: 42 | B43: High School DxD BorN - Vol. 1 | D43: X | G43: X | H43: X | L43: X | W43: 75 | X43: 16 | Y43: DTS-HD Master Audio 2.0 | Z43: DTS-HD Master Audio 2.0 | AA43: 1.78 | AB43: 1 | AC43: Blu-ray | AD43: Haisukūru D×D BorN | AE43: High3.1
A44: 43 | B44: High School DxD BorN - Vol. 2 | D44: X | G44: X | H44: X | L44: X | W44: 75 | X44: 16 | Y44: DTS-HD Master Audio 2.0 | Z44: DTS-HD Master Audio 2.0 | AA44: 1.78 | AB44: 1 | AC44: Blu-ray | AD44: Haisukūru D×D BorN | AE44: High3.2
A45: 44 | B45: High School DxD BorN - Vol. 3 | D45: X | G45: X | H45: X | L45: X | W45: 75 | X45: 16 | Y45: DTS-HD Master Audio 2.0 | Z45: DTS-HD Master Audio 2.0 | AA45: 1.78 | AB45: 1 | AC45: Blu-ray | AD45: Haisukūru D×D BorN | AE45: High3.3
A46: 45 | B46: High School DxD BorN - Vol. 4 | D46: X | G46: X | H46: X | L46: X | W46: 75 | X46: 16 | Y46: DTS-HD Master Audio 2.0 | Z46: DTS-HD Master Audio 2.0 | AA46: 1.78 | AB46: 1 | AC46: Blu-ray | AD46: Haisukūru D×D BorN | AE46: High3.4
A47: 46 | B47: High School DxD Hero - Vol. 1 | D47: X | G47: X | H47: X | L47: X | W47: 100 | X47: 16 | Y47: DTS-HD Master Audio 2.0 | Z47: DTS-HD Master Audio 2.0 | AA47: 1.78 | AB47: 1 | AC47: Blu-ray | AD47: Haisukūru D×D Hero | AE47: High4.1
A48: 47 | B48: High School DxD Hero - Vol. 2 | D48: X | G48: X | H48: X | L48: X | W48: 75 | X48: 16 | Y48: DTS-HD Master Audio 2.0 | Z48: DTS-HD Master Audio 2.0 | AA48: 1.78 | AB48: 1 | AC48: Blu-ray | AD48: Haisukūru D×D Hero | AE48: High4.2
A49: 48 | B49: High School DxD Hero - Vol. 3 | D49: X | G49: X | H49: X | L49: X | W49: 75 | X49: 16 | Y49: DTS-HD Master Audio 2.0 | Z49: DTS-HD Master Audio 2.0 | AA49: 1.78 | AB49: 1 | AC49: Blu-ray | AD49: Haisukūru D×D Hero | AE49: High4.3
A50: 49 | B50: High School DxD Hero - Vol. 4 | D50: X | G50: X | H50: X | L50: X | W50: 75 | X50: 16 | Y50: DTS-HD Master Audio 2.0 | Z50: DTS-HD Master Audio 2.0 | AA50: 1.78 | AB50: 1 | AC50: Blu-ray | AD50: Haisukūru D×D Hero | AE50: High4.4
A51: 50 | B51: How Not to Summon a Demon Lord | C51: X | D51: X | H51: X | L51: X | O51: X | W51: 300 | X51: 16 | Y51: DTS-HD Master Audio 2.0 | Z51: DTS-HD Master Audio 2.0 | AA51: 1.78 | AB51: 3 | AC51: Blu-ray | AD51: Isekai maō to shōkan shōjo no dorei majutsu | AE51: HowNot1.0
A52: 51 | B52: How NOT to Summon a Demon Lord Ω | C52: X | D52: X | H52: X | L52: X | O52: X | W52: 250 | X52: 16 | Y52: DTS-HD Master Audio 2.0 | Z52: DTS-HD Master Audio 2.0 | AA52: 1.78 | AB52: 2 | AC52: Blu-ray | AD52: Isekai Maō to Shōkan Shōjo no Dorei Majutsu Ω | AE52: HowNot2.0
A53: 52 | B53: Hybrid x Heart Magias Academy Ataraxia - Vol. 1 | D53: X | G53: X | H53: X | L53: X | W53: 150 | X53: 16 | Y53: Dolby Digital 2.0 Stereo | Z53: Dolby Digital 2.0 Stereo | AA53: 1.78 | AB53: 1 | AC53: Blu-ray | AD53: Masō gakuen HxH | AE53: HybridxHeart1.1
A54: 53 | B54: Hybrid x Heart Magias Academy Ataraxia - Vol. 2 | D54: X | G54: X | H54: X | L54: X | W54: 150 | X54: 16 | Y54: Dolby Digital 2.0 Stereo | Z54: Dolby Digital 2.0 Stereo | AA54: 1.78 | AB54: 1 | AC54: Blu-ray | AD54: Masō gakuen HxH | AE54: HybridxHeart1.2
A55: 54 | B55: I Got a Cheat Skill in Another World and Became Unrivaled in The Real World, Too | C55: X | D55: X | H55: X | W55: 325 | X55: 12 | Y55: Dolby TrueHD 2.0 | Z55: Dolby TrueHD 2.0 | AA55: 1.78 | AB55: 2 | AC55: Blu-ray | AD55: Isekai de Chīto Sukiru o Te ni Shita Ore wa, Genjitsu Sekai o mo Musō Suru: Reberu Appu wa Jinsei o Kaeta | AE55: IGotACheatSkill1.0
A56: 55 | B56: Interviews mit Monster-Mädchen | H56: X | L56: X | W56: 300 | X56: 12 | Y56: DTS-HD Master Audio 2.0 | Z56: DTS-HD Master Audio 2.0 | AA56: 1.78 | AB56: 3 | AC56: Blu-ray | AD56: Demi-chan wa Kataritai | AE56: Interviews1.0
A57: 56 | B57: Is This a Zombie? | H57: X | L57: X | O57: X | W57: 322 | X57: 16 | Y57: DTS-HD Master Audio 2.0 | Z57: DTS-HD Master Audio 2.0 | AA57: 1.78 | AB57: 3 | AC57: Blu-ray | AD57: Kore wa zonbi desu ka? | AE57: IsThisAZombie1.0
A58: 57 | B58: Is This a Zombie? of the Dead | D58: X | H58: X | L58: X | W58: 265 | X58: 16 | Y58: DTS-HD Master Audio 2.0 | Z58: DTS-HD Master Audio 2.0 | AA58: 1.78 | AB58: 3 | AC58: Blu-ray | AD58: Kore wa zonbi desu ka? Obu za deddo | AE58: IsThisAZombie2.0
A59: 58 | B59: Josie, der Tiger und die Fische | F59: X | O59: X | W59: 98 | X59: 12 | Y59: DTS-HD Master Audio 5.1 | Z59: DTS-HD Master Audio 5.1 | AA59: 1.78 | AB59: 1 | AC59: Blu-ray | AD59: Joze to tora to sakana-tachi | AE59: Josie
A60: 59 | B60: Kiddy Grade - Vol. 1 | D60: X | R60: X | W60: 300 | X60: 16 | Y60: LPCM 2.0 | Z60: LPCM 2.0 | AA60: 1.33 | AB60: 2 | AC60: Blu-ray | AD60: Kiddy Grade | AE60: Kiddy1.1
A61: 60 | B61: Kiddy Grade - Vol. 2 | D61: X | R61: X | W61: 300 | X61: 16 | Y61: LPCM 2.0 | Z61: LPCM 2.0 | AA61: 1.33 | AB61: 2 | AC61: Blu-ray | AD61: Kiddy Grade | AE61: Kiddy1.2
A62: 61 | B62: Kiss × Sis | G62: X | L62: X | O62: X | W62: =144+144+144+144 -> 576 | X62: 18 | Y62: DTS-HD Master Audio 2.0 | Z62: DTS-HD Master Audio 2.0 | AA62: 1.78 | AB62: 4 | AC62: Blu-ray | AD62: kiss×sis | AE62: Kiss1.0
A63: 62 | B63: Lonely Castle in the Mirror | F63: X | H63: X | Q63: X | W63: 116 | X63: 12 | Y63: Dolby Atmos 7.1.4 | Z63: DTS-HD Master Audio 5.1 | AA63: 1.78 | AB63: 1 | AC63: Blu-ray | AD63: Kagami no Kojō | AE63: LonelyCastle
A64: 63 | B64: Lycoris Recoil | D64: X | L64: X | W64: 325 | X64: 16 | Y64: Dolby TrueHD 2.0 | Z64: Dolby TrueHD 2.0 | AA64: 1.78 | AB64: 2 | AC64: Blu-ray | AD64: Rikorisu Rikoiru | AE64: Lycoris1.0
A65: 64 | B65: Maid-sama - Vol. 1 | L65: X | O65: X | W65: 350 | X65: 12 | Y65: DTS-HD Master Audio 2.0 | Z65: DTS-HD Master Audio 2.0 | AA65: 1.78 | AB65: 2 | AC65: Blu-ray | AD65: Kaichō wa Maid-sama! | AE65: Maid1.1
A66: =A65+1 -> 65 | B66: Maid-sama - Vol. 2 | L66: X | O66: X | W66: 300 | X66: 12 | Y66: DTS-HD Master Audio 2.0 | Z66: DTS-HD Master Audio 2.0 | AA66: 1.78 | AB66: 2 | AC66: Blu-ray | AD66: Kaichō wa Maid-sama! | AE66: Maid1.2
A67: 66 | B67: Miss Kobayashi's Dragon Maid - Vol. 1 | H67: X | L67: X | W67: 125 | X67: 12 | Y67: Dolby Digital 2.0 Stereo | Z67: Dolby Digital 2.0 Stereo | AA67: 1.78 | AB67: 1 | AC67: Blu-ray | AD67: Kobayashi-san Chi no Meidoragon | AE67: MissKoba1.1
A68: 67 | B68: Miss Kobayashi's Dragon Maid - Vol. 2 | H68: X | L68: X | W68: 125 | X68: 12 | Y68: Dolby Digital 2.0 Stereo | Z68: Dolby Digital 2.0 Stereo | AA68: 1.78 | AB68: 1 | AC68: Blu-ray | AD68: Kobayashi-san Chi no Meidoragon | AE68: MissKoba1.2
A69: 68 | B69: Miss Kobayashi's Dragon Maid - Vol. 3 | H69: X | L69: X | W69: 100 | X69: 12 | Y69: Dolby Digital 2.0 Stereo | Z69: Dolby Digital 2.0 Stereo | AA69: 1.78 | AB69: 1 | AC69: Blu-ray | AD69: Kobayashi-san Chi no Meidoragon | AE69: MissKoba1.3
A70: 69 | B70: Miss Kobayashi's Dragon Maid S | H70: X | L70: X | W70: 325 | X70: 12 | Y70: DTS-HD Master Audio 2.0 | Z70: DTS-HD Master Audio 2.0 | AA70: 1.78 | AB70: 3 | AC70: Blu-ray | AD70: Kobayashi-san Chi no Meidoragon | AE70: MissKoba2.0
A71: 70 | B71: Monster Girl Doctor - Vol. 1 | H71: X | L71: X | O71: X | W71: 150 | X71: 16 | Y71: DTS-HD Master Audio 2.0 | Z71: DTS-HD Master Audio 2.0 | AA71: 1.78 | AB71: 1 | AC71: Blu-ray | AD71: Monsutā Musume no Oisha-san | AE71: MonsterGirlDoc1.1
A72: 71 | B72: Monster Girl Doctor - Vol. 2 | H72: X | L72: X | O72: X | W72: 150 | X72: 16 | Y72: DTS-HD Master Audio 2.0 | Z72: DTS-HD Master Audio 2.0 | AA72: 1.78 | AB72: 1 | AC72: Blu-ray | AD72: Monsutā Musume no Oisha-san | AE72: MonsterGirlDoc1.2
A73: 72 | B73: Monster Mädchen, Die | H73: X | L73: X | O73: X | W73: 300 | X73: 16 | Y73: DTS-HD Master Audio 2.0 | Z73: DTS-HD Master Audio 2.0 | AA73: 1.78 | AB73: 4 | AC73: Blu-ray | AD73: Monsutā musume no iru nichijō | AE73: MonsterM1.0
A74: 73 | B74: Mother of the Goddess' Dormitory | G74: X | L74: X | O74: X | W74: 240 | X74: 16 | Y74: DTS-HD Master Audio 2.0 | Z74: DTS-HD Master Audio 2.0 | AA74: 1.78 | AB74: 3 | AC74: Blu-ray | AD74: Megami-ryō no Ryōbo-kun | AE74: Motherof1.0
A75: 74 | B75: My Dress-Up Darling - Season 1 | L75: X | O75: X | W75: 300 | X75: 12 | Y75: Dolby TrueHD 2.0 | Z75: Dolby TrueHD 2.0 | AA75: 1.78 | AB75: 2 | AC75: Blu-ray | AD75: Sono Bisuku Dōru wa Koi o Suru | AE75: MyDressUpDarling1.0
A76: 75 | B76: My First Girlfriend Is a Gal - Vol. 1 | L76: X | O76: X | W76: 125 | X76: 16 | Y76: Dolby Digital 2.0 Stereo | Z76: Dolby Digital 2.0 Stereo | AA76: 1.78 | AB76: 1 | AC76: Blu-ray | AD76: Hajimete no Gyaru | AE76: MyFirstGirlfriend1.1
A77: 76 | B77: My First Girlfriend Is a Gal - Vol. 2 | L77: X | O77: X | W77: 125 | X77: 16 | Y77: Dolby Digital 2.0 Stereo | Z77: Dolby Digital 2.0 Stereo | AA77: 1.78 | AB77: 1 | AC77: Blu-ray | AD77: Hajimete no Gyaru | AE77: MyFirstGirlfriend1.2
A78: 77 | B78: My Life as Inukai-san's Dog | G78: X | L78: X | O78: X | W78: 144 | X78: 16 | Y78: DTS-HD Master Audio 2.0 | Z78: DTS-HD Master Audio 2.0 | AA78: 1.78 | AB78: 1 | AC78: Blu-ray | AD78: Inu ni Nattara Suki na Hito ni Hirowareta | AE78: MyLifeAs1.0
A79: 78 | B79: Peter Grill and the Philosopher's Time | G79: X | H79: X | L79: X | W79: 144 | X79: 16 | Y79: DTS-HD Master Audio 2.0 | Z79: DTS-HD Master Audio 2.0 | AA79: 1.78 | AB79: 3 | AC79: Blu-ray | AD79: Pītā Guriru to Kenja no Jikan | AE79: PeterGrill1.0
A80: 79 | B80: Plus-Sized Elf | G80: X | H80: X | L80: X | W80: 332 | X80: 16 | Y80: DTS-HD Master Audio 2.0 | Z80: DTS-HD Master Audio 2.0 | AA80: 1.78 | AB80: 2 | AC80: Blu-ray | AD80: Erufu-san wa Yaserarenai | AE80: PlusSizedElf1.0
A81: 80 | B81: Princess Principal - Vol. 1 | D81: X | F81: X | Q81: X | W81: 150 | X81: 16 | Y81: Dolby Digital 2.0 Stereo | Z81: Dolby Digital 2.0 Stereo | AA81: 1.78 | AB81: 1 | AC81: Blu-ray | AD81: Princess Principal | AE81: PrincessPrincipal1.1
A82: 81 | B82: Princess Principal - Vol. 2 | D82: X | F82: X | Q82: X | W82: 150 | X82: 16 | Y82: Dolby Digital 2.0 Stereo | Z82: Dolby Digital 2.0 Stereo | AA82: 1.78 | AB82: 1 | AC82: Blu-ray | AD82: Princess Principal | AE82: PrincessPrincipal1.2
A83: 82 | B83: Princess Principal: Crown Handler - Chapter 1 & 2 | D83: X | F83: X | Q83: X | W83: 110 | X83: 16 | Y83: DTS-HD Master Audio 5.1 | Z83: DTS-HD Master Audio 5.1 | AA83: 1.78 | AB83: 1 | AC83: Blu-ray | AD83: Purinsesu Purinshiparu: Kuraun Handorā | AE83: PrincessPrincipalCrownHandler1-2
A84: 83 | B84: Prison School | L84: X | O84: X | W84: 300 | X84: 16 | Y84: DTS-HD Master Audio 5.1 | Z84: LPCM 2.0 | AA84: 1.78 | AB84: 4 | AC84: Blu-ray | AD84: Purizun Sukūru | AE84: PrisonS1.0
A85: 84 | B85: RIN - Daughters of Mnemosyne | D85: X | K85: X | Q85: X | S85: X | T85: X | W85: 270 | X85: 16 | Y85: Dolby Digital 5.1 | Z85: Dolby Digital 2.0 Stereo | AA85: 1.78 | AB85: 2 | AC85: DVD | AD85: Mnemosyne: Munemoshune no musume-tachi | AE85: Rin1.0
A86: 85 | B86: Rosario + Vampire | D86: X | H86: X | L86: X | O86: X | W86: 325 | X86: 16 | Y86: DTS-HD Master Audio 2.0 | Z86: DTS-HD Master Audio 2.0 | AA86: 1.78 | AB86: 2 | AC86: Blu-ray | AD86: Rozario to banpaia | AE86: Rosario1.0
A87: 86 | B87: Rosario + Vampire Capu2 | D87: X | H87: X | L87: X | O87: X | W87: 325 | X87: 16 | Y87: DTS-HD Master Audio 2.0 | Z87: DTS-HD Master Audio 2.0 | AA87: 1.78 | AB87: 2 | AC87: Blu-ray | AD87: Rozario to banpaia: Capu2 | AE87: Rosario2.0
A88: 87 | B88: Seven Mortal Sins - Vol. 1 | D88: X | H88: X | W88: 150 | X88: 16 | Y88: Dolby Digital 2.0 Stereo | Z88: Dolby Digital 2.0 Stereo | AA88: 1.78 | AB88: 1 | AC88: Blu-ray | AD88: Sin: Nanatsu no taizai | AE88: Seven1.1
A89: 88 | B89: Seven Mortal Sins - Vol. 2 | D89: X | H89: X | W89: 150 | X89: 16 | Y89: Dolby Digital 2.0 Stereo | Z89: Dolby Digital 2.0 Stereo | AA89: 1.78 | AB89: 1 | AC89: Blu-ray | AD89: Sin: Nanatsu no taizai | AE89: Seven1.2
A90: 89 | B90: Shimoneta: A Boring World Where the Concept of Dirty Jokes Doesn’t Exist | L90: X | W90: 300 | X90: 16 | Y90: DTS-HD Master Audio 2.0 | Z90: DTS-HD Master Audio 2.0 | AA90: 1.78 | AB90: 4 | AC90: Blu-ray | AD90: Shimoneta to iu gainen ga sonzai shinai taikutsu na sekai | AE90: Shimoneta1.0
A91: 90 | B91: Sky Wizards Academy - Vol. 1 | D91: X | F91: X | H91: X | W91: 141 | X91: 12 | Y91: DTS-HD Master Audio 5.1 | Z91: DTS-HD Master Audio 2.0 | AA91: 1.78 | AB91: 1 | AC91: Blu-ray | AD91: Kūsen madōshi kōhosei no kyōkan | AE91: SkyWizards1.1
A92: 91 | B92: Sky Wizards Academy - Vol. 2 | D92: X | F92: X | H92: X | W92: 166 | X92: 12 | Y92: DTS-HD High Resolution 5.1 | Z92: DTS-HD Master Audio 2.0 | AA92: 1.78 | AB92: 1 | AC92: Blu-ray | AD92: Kūsen madōshi kōhosei no kyōkan | AE92: SkyWizards1.2
A93: 92 | B93: So, I Can't Play H - Vol. 1 | H93: X | O93: X | W93: 150 | X93: 16 | Y93: DTS-HD Master Audio 2.0 | Z93: DTS-HD Master Audio 2.0 | AA93: 1.78 | AB93: 1 | AC93: Blu-ray | AD93: Dakara boku wa, H ga dekinai. | AE93: SoICantPlayH1.1
A94: 93 | B94: So, I Can't Play H - Vol. 2 | H94: X | O94: X | W94: 150 | X94: 16 | Y94: DTS-HD Master Audio 2.0 | Z94: DTS-HD Master Audio 2.0 | AA94: 1.78 | AB94: 1 | AC94: Blu-ray | AD94: Dakara boku wa, H ga dekinai. | AE94: SoICantPlayH1.2
A95: 94 | B95: SPY×FAMILY - Staffel 1 | D95: X | L95: X | W95: 625 | X95: 12 | Y95: DTS-HD Master Audio 2.0 | Z95: DTS-HD Master Audio 2.0 | AA95: 1.78 | AB95: 6 | AC95: Blu-ray | AD95: SPY×FAMILY | AE95: Spy1.0
A96: 95 | B96: SPY×FAMILY - Staffel 2 | D96: X | L96: X | W96: =100+100+100 -> 300 | X96: 16 | Y96: DTS-HD Master Audio 2.0 | Z96: DTS-HD Master Audio 2.0 | AA96: 1.78 | AB96: 3 | AC96: Blu-ray | AD96: SPY×FAMILY | AE96: Spy2.0
A97: 96 | B97: SPY×FAMILY Code: White | C97: X | D97: X | L97: X | W97: 110 | X97: 12 | Y97: Dolby TrueHD 5.1 | Z97: Dolby TrueHD 5.1 | AA97: 1.78 | AB97: 1 | AC97: Blu-ray | AD97: Gekijōban Supai Famirī Kōdo: Howaito | AE97: SpyCode
A98: 97 | B98: Strike the Blood | D98: X | H98: X | L98: X | W98: 600 | X98: 16 | Y98: DTS-HD Master Audio 2.0 | Z98: DTS-HD Master Audio 2.0 | AA98: 1.78 | AB98: 4 | AC98: Blu-ray | AD98: Sutoraiku za buraddo | AE98: StrikeTheBlood1.0
A99: 98 | B99: Strike the Blood OVAs | D99: X | H99: X | L99: X | W99: 50 | X99: 12 | Y99: DTS-HD Master Audio 2.0 | Z99: DTS-HD Master Audio 2.0 | AA99: 1.78 | AB99: 1 | AC99: Blu-ray | AD99: Sutoraiku za buraddo | AE99: StrikeTheBlood1.5
A100: 99 | B100: Strike the Blood II | D100: X | H100: X | L100: X | W100: 200 | X100: 16 | Y100: DTS-HD Master Audio 2.0 | Z100: DTS-HD Master Audio 2.0 | AA100: 1.78 | AB100: 1 | AC100: Blu-ray | AD100: Sutoraiku za buraddo | AE100: StrikeTheBlood2.0
A101: 100 | B101: Strike Witches - Staffel 1 | D101: X | R101: X | W101: 296 | X101: 16 | Y101: DTS-HD Master Audio 2.0 | Z101: DTS-HD Master Audio 2.0 | AA101: 1.78 | AB101: 3 | AC101: Blu-ray | AD101: Sutoraiku Witchīzu | AE101: StrikeWitches1.0
A102: 101 | B102: Super HxEros - Vol. 1 | D102: X | H102: X | L102: X | O102: X | W102: 175 | X102: 16 | Y102: DTS-HD Master Audio 2.0 | Z102: DTS-HD Master Audio 2.0 | AA102: 1.78 | AB102: 1 | AC102: Blu-ray | AD102: Dokyū Hentai Eguzerosu | AE102: SuperHxEros1.1
A103: 102 | B103: Super HxEros - Vol. 2 | D103: X | H103: X | L103: X | O103: X | W103: 150 | X103: 16 | Y103: DTS-HD Master Audio 2.0 | Z103: DTS-HD Master Audio 2.0 | AA103: 1.78 | AB103: 1 | AC103: Blu-ray | AD103: Dokyū Hentai Eguzerosu | AE103: SuperHxEros1.2
A104: 103 | B104: Tales of Wedding Rings | D104: X | H104: X | O104: X | W104: 300 | X104: 16 | Y104: Dolby TrueHD 2.0 | Z104: Dolby TrueHD 2.0 | AA104: 1.78 | AB104: 2 | AC104: Blu-ray | AD104: Kekkon Yubiwa Monogatari | AE104: TalesOfWedd1.0
A105: 104 | B105: The Ancient Magus' Bride | H105: X | O105: X | W105: 600 | X105: 12 | Y105: DTS-HD Master Audio 2.0 | Z105: DTS-HD Master Audio 2.0 | AA105: 1.78 | AB105: 4 | AC105: Blu-ray | AD105: Mahōtsukai no yome | AE105: TheAncientMagus1.0
A106: 105 | B106: The Ancient Magus' Bride: Jener, der auf die Sterne wartet | H106: X | O106: X | W106: 75 | X106: 12 | Y106: DTS-HD Master Audio 2.0 | Z106: DTS-HD Master Audio 2.0 | AA106: 1.78 | AB106: 1 | AC106: Blu-ray | AD106: Mahōtsukai no yome | AE106: TheAncientMagus1.5
A107: 106 | B107: The Ancient Magus' Bride: The Boy from the West and the Knight of the Blue Storm | H107: X | O107: X | W107: 66 | X107: 12 | Y107: Dolby TrueHD 2.0 | Z107: Dolby TrueHD 2.0 | AA107: 1.78 | AB107: 1 | AC107: Blu-ray | AD107: Mahōtsukai no yome | AE107: TheAncientMagus1.6
A108: 107 | B108: The Ancient Magus' Bride - Season 2 | H108: X | O108: X | W108: 600 | X108: 12 | Y108: Dolby TrueHD 2.0 | Z108: Dolby TrueHD 2.0 | AA108: 1.78 | AB108: 4 | AC108: Blu-ray | AD108: Mahōtsukai no yome | AE108: TheAncientMagus2.0
A109: 108 | B109: The Dreaming Boy Is a Realist | L109: X | O109: X | W109: 284 | X109: 6 | Y109: DTS-HD Master Audio 5.1 | Z109: DTS-HD Master Audio 2.0 | AA109: 1.78 | AB109: 2 | AC109: Blu-ray | AD109: Yumemiru Danshi wa Genjitsushugisha | AE109: TheDreaming1.0
A110: 109 | B110: The Pet Girl of Sakurasou | L110: X | O110: X | W110: 576 | X110: 12 | Y110: Dolby Digital 2.0 Stereo | Z110: Dolby Digital 2.0 Stereo | AA110: 1.78 | AB110: 4 | AC110: Blu-ray | AD110: Sakura-sō no Petto na Kanojo | AE110: ThePetGirl1.0
A111: 110 | B111: The Quintessential Quintuplets | L111: X | O111: X | W111: 300 | X111: 12 | Y111: DTS-HD Master Audio 2.0 | Z111: DTS-HD Master Audio 2.0 | AA111: 1.78 | AB111: 3 | AC111: Blu-ray | AD111: Go-Tōbun no Hanayome | AE111: TheQuintes1.0
A112: 111 | B112: The Quintessential Quintuplets 2 | L112: X | O112: X | W112: 300 | X112: 12 | Y112: DTS-HD Master Audio 2.0 | Z112: DTS-HD Master Audio 2.0 | AA112: 1.78 | AB112: 3 | AC112: Blu-ray | AD112: Go-Tōbun no Hanayome ∬ | AE112: TheQuintes2.0
A113: 112 | B113: The Quintessential Quintuplets Movie | F113: X | L113: X | O113: X | W113: 135 | X113: 0 | Y113: DTS-HD Master Audio 2.0 | Z113: DTS-HD Master Audio 2.0 | AA113: 1.78 | AB113: 1 | AC113: Blu-ray | AD113: Eiga Go-Tōbun no Hanayome | AE113: TheQuintes3.0
A114: 113 | B114: The Testament of Sister New Devil - Vol. 1 | G114: X | H114: X | L114: X | W114: 150 | X114: 16 | Y114: LPCM 2.0 | Z114: LPCM 2.0 | AA114: 1.78 | AB114: 1 | AC114: Blu-ray | AD114: Shinmai Maō no Tesutamento | AE114: TheTestamentofSister1.1
A115: 114 | B115: The Testament of Sister New Devil - Vol. 2 | G115: X | H115: X | L115: X | W115: 175 | X115: 16 | Y115: LPCM 2.0 | Z115: LPCM 2.0 | AA115: 1.78 | AB115: 1 | AC115: Blu-ray | AD115: Shinmai Maō no Tesutamento | AE115: TheTestamentofSister1.2
A116: 115 | B116: The Testament of Sister New Devil Burst - Vol. 3 | D116: X | G116: X | H116: X | L116: X | W116: 150 | X116: 16 | Y116: LPCM 2.0 | Z116: LPCM 2.0 | AA116: 1.78 | AB116: 1 | AC116: Blu-ray | AD116: Shinmai Maō no Tesutamento BURST | AE116: TheTestamentofSister2.1
A117: 116 | B117: The Testament of Sister New Devil Burst - Vol. 4 | D117: X | G117: X | H117: X | L117: X | W117: 100 | X117: 16 | Y117: LPCM 2.0 | Z117: LPCM 2.0 | AA117: 1.78 | AB117: 1 | AC117: Blu-ray | AD117: Shinmai Maō no Tesutamento BURST | AE117: TheTestamentofSister2.2
A118: 117 | B118: The Testament of Sister New Devil Departures | D118: X | G118: X | H118: X | L118: X | W118: 60 | X118: 16 | Y118: DTS-HD Master Audio 2.0 | Z118: DTS-HD Master Audio 2.0 | AA118: 1.78 | AB118: 1 | AC118: Blu-ray | AD118: Shinmai Maō no Tesutamento: Departures | AE118: TheTestamentofSister2.3
A119: 118 | B119: To Love-Ru | L119: X | O119: X | R119: X | W119: 576 | X119: 16 | Y119: DTS-HD Master Audio 2.0 | Z119: DTS-HD Master Audio 2.0 | AA119: 1.78 | AB119: 6 | AC119: Blu-ray | AD119: To Rabu ru | AE119: ToLo1.0
A120: 119 | B120: Motto To Love-Ru: Trouble | L120: X | O120: X | R120: X | W120: 254 | X120: 16 | Y120: DTS-HD Master Audio 2.0 | Z120: DTS-HD Master Audio 2.0 | AA120: 1.78 | AB120: 3 | AC120: Blu-ray | AD120: Motto To Rabu ru | AE120: ToLo2.0
A121: 120 | B121: To Love-Ru: Darkness | L121: X | O121: X | R121: X | W121: 273 | X121: 16 | Y121: DTS-HD Master Audio 2.0 | Z121: DTS-HD Master Audio 2.0 | AA121: 1.78 | AB121: 3 | AC121: Blu-ray | AD121: To Raburu -Toraburu- Dākunesu | AE121: ToLo3.0
A122: 121 | B122: To Love-Ru: Darkness 2nd | L122: X | O122: X | R122: X | W122: 338 | X122: 16 | Y122: DTS-HD Master Audio 5.1 | Z122: DTS-HD Master Audio 5.1 | AA122: 1.78 | AB122: 4 | AC122: Blu-ray | AD122: To Raburu -Toraburu- Dākunesu Sekando | AE122: ToLo4.0
A123: 122 | B123: Triage X - Vol. 1 | D123: X | G123: X | W123: 100 | X123: 16 | Y123: DTS-HD Master Audio 2.0 | Z123: DTS-HD Master Audio 2.0 | AA123: 1.78 | AB123: 1 | AC123: Blu-ray | AD123: Toriāji Ikusu | AE123: Tria1.1
A124: 123 | B124: Triage X - Vol. 2 | D124: X | G124: X | W124: 100 | X124: 16 | Y124: DTS-HD Master Audio 2.0 | Z124: DTS-HD Master Audio 2.0 | AA124: 1.78 | AB124: 1 | AC124: Blu-ray | AD124: Toriāji Ikusu | AE124: Tria1.2
A125: 124 | B125: Triage X - Vol. 3 | D125: X | G125: X | W125: 75 | X125: 16 | Y125: DTS-HD Master Audio 2.0 | Z125: DTS-HD Master Audio 2.0 | AA125: 1.78 | AB125: 1 | AC125: Blu-ray | AD125: Toriāji Ikusu | AE125: Tria1.3
A126: 125 | B126: Trinity Seven - Vol. 1 | D126: X | H126: X | L126: X | W126: 96 | X126: 12 | Y126: DTS-HD Master Audio 5.1 | Z126: DTS-HD Master Audio 2.0 | AA126: 1.78 | AB126: 1 | AC126: Blu-ray | AD126: Toriniti sebun | AE126: Trinity1.1
A127: 126 | B127: Trinity Seven - Vol. 2 | D127: X | H127: X | L127: X | W127: 96 | X127: 12 | Y127: DTS-HD Master Audio 5.1 | Z127: DTS-HD Master Audio 2.0 | AA127: 1.78 | AB127: 1 | AC127: Blu-ray | AD127: Toriniti sebun | AE127: Trinity1.2
A128: 127 | B128: Trinity Seven - Vol. 3 | D128: X | H128: X | L128: X | W128: 96 | X128: 12 | Y128: DTS-HD Master Audio 5.1 | Z128: DTS-HD Master Audio 2.0 | AA128: 1.78 | AB128: 1 | AC128: Blu-ray | AD128: Toriniti sebun | AE128: Trinity1.3
A129: 128 | B129: Trinity Seven: Eternity Library & Alchemic Girl | D129: X | H129: X | L129: X | W129: 56 | X129: 12 | Y129: DTS-HD Master Audio 5.1 | Z129: DTS-HD Master Audio 2.0 | AA129: 1.78 | AB129: 1 | AC129: Blu-ray | AD129: Gekijō-ban Toriniti Sebun: Yūkyū Toshokan to Renkinjutsu Shōjo | AE129: Trinity2.0
A130: =A129+1 -> 129 | B130: Trinity Seven: Heavens Library & Crimson Lord | D130: X | H130: X | L130: X | W130: 63 | X130: 16 | Y130: DTS-HD Master Audio 5.1 | Z130: DTS-HD Master Audio 5.1 | AA130: 1.85 | AB130: 1 | AC130: Blu-ray | AD130: Gekijōban Toriniti Sebun: Tenkū Toshokan to Shinku no Maō | AE130: Trinity3.0
A131: 130 | B131: Tsugumomo - Vol. 1 | D131: X | G131: X | H131: X | L131: X | O131: X | W131: 100 | X131: 16 | Y131: DTS-HD Master Audio 5.1 | Z131: LPCM 2.0 | AA131: 1.78 | AB131: 1 | AC131: Blu-ray | AD131: Tsugumomo | AE131: Tsugumomo 1.1
A132: 131 | B132: Tsugumomo - Vol. 2 | D132: X | G132: X | H132: X | L132: X | O132: X | W132: 100 | X132: 16 | Y132: DTS-HD Master Audio 5.1 | Z132: LPCM 2.0 | AA132: 1.78 | AB132: 1 | AC132: Blu-ray | AD132: Tsugumomo | AE132: Tsugumomo 1.2
A133: 132 | B133: Tsugumomo - Vol. 3 | D133: X | G133: X | H133: X | L133: X | O133: X | W133: 100 | X133: 16 | Y133: DTS-HD Master Audio 5.1 | Z133: LPCM 2.0 | AA133: 1.78 | AB133: 1 | AC133: Blu-ray | AD133: Tsugumomo | AE133: Tsugumomo 1.3
A134: 133 | B134: Uzaki-chan Wants to Hang Out! - Staffel 1 | L134: X | O134: X | W134: 300 | X134: 12 | Y134: Dolby TrueHD 2.0 | Z134: Dolby TrueHD 2.0 | AA134: 1.78 | AB134: 2 | AC134: Blu-ray | AD134: Uzaki-chan wa asobitai! | AE134: Uzaki1.0
A135: 134 | B135: Uzaki-chan Wants to Hang Out! - Staffel 2 | L135: X | O135: X | W135: 325 | X135: 12 | Y135: Dolby TrueHD 2.0 | Z135: Dolby TrueHD 2.0 | AA135: 2.78 | AB135: 2 | AC135: Blu-ray | AD135: Uzaki-chan wa asobitai! Ω | AE135: Uzaki2.0
A136: 135 | B136: Valkyrie Drive: Mermaid - Vol. 1 | D136: X | H136: X | W136: 97 | X136: 16 | Y136: DTS-HD Master Audio 5.1 | Z136: DTS-HD Master Audio 2.0 | AA136: 1.78 | AB136: 1 | AC136: Blu-ray | AD136: Valkyrie Drive: Mermaid | AE136: Valkyrie1.1
A137: 136 | B137: Valkyrie Drive: Mermaid - Vol. 2 | D137: X | H137: X | W137: 96 | X137: 16 | Y137: DTS-HD Master Audio 5.1 | Z137: DTS-HD Master Audio 2.0 | AA137: 1.78 | AB137: 1 | AC137: Blu-ray | AD137: Valkyrie Drive: Mermaid | AE137: Valkyrie1.2
A138: 137 | B138: Valkyrie Drive: Mermaid - Vol. 3 | D138: X | H138: X | W138: 96 | X138: 16 | Y138: DTS-HD Master Audio 5.1 | Z138: DTS-HD Master Audio 2.0 | AA138: 1.78 | AB138: 1 | AC138: Blu-ray | AD138: Valkyrie Drive: Mermaid | AE138: Valkyrie1.3
A139: 138 | B139: Val x Love | D139: X | H139: X | L139: X | W139: 300 | X139: 16 | Y139: DTS-HD Master Audio 2.0 | Z139: DTS-HD Master Audio 2.0 | AA139: 1.78 | AB139: 3 | AC139: Blu-ray | AD139: Varu x ravu | AE139: ValxLo1.0
A140: 139 | B140: Vermeil in Gold | F140: X | H140: X | L140: X | O140: X | W140: 288 | X140: 12 | Y140: DTS-HD Master Audio 2.0 | Z140: DTS-HD Master Audio 2.0 | AA140: 1.78 | AB140: 1 | AC140: Blu-ray | AD140: Kinsō no Verumeiyu: Gakeppuchi Majutsushi wa Saikyō no Yakusai to Mahō Sekai o Tsukisusumu | AE140: Vermeil1.0
A141: 140 | B141: We Never Learn - Staffel 1 | L141: X | O141: X | W141: 325 | X141: 12 | Y141: Dolby Digital 2.0 Stereo | Z141: Dolby Digital 2.0 Stereo | AA141: 1.78 | AB141: 3 | AC141: Blu-ray | AD141: Bokutachi wa Benkyō ga Dekinai | AE141: WeNever1
A142: 141 | B142: We Never Learn - Staffel 2 | L142: X | O142: X | W142: 325 | X142: 12 | Y142: Dolby Digital 2.0 Stereo | Z142: Dolby Digital 2.0 Stereo | AA142: 1.78 | AB142: 3 | AC142: Blu-ray | AD142: Bokutachi wa Benkyō ga Dekinai | AE142: WeNever2
A143: 142 | B143: Why the Hell Are You Here, Teacher!? - Vol. 1 | G143: X | L143: X | O143: X | W143: 72 | X143: 16 | Y143: Dolby Digital 2.0 Stereo | Z143: Dolby Digital 2.0 Stereo | AA143: 1.78 | AB143: 1 | AC143: Blu-ray | AD143: Nande koko ni sensei ga!? | AE143: Whythe1.1
A144: 143 | B144: Why the Hell Are You Here, Teacher!? - Vol. 2 | G144: X | L144: X | O144: X | W144: 72 | X144: 16 | Y144: Dolby Digital 2.0 Stereo | Z144: Dolby Digital 2.0 Stereo | AA144: 1.78 | AB144: 1 | AC144: Blu-ray | AD144: Nande koko ni sensei ga!? | AE144: Whythe1.2
A145: 144 | B145: Witchblade | D145: X | H145: X | W145: 600 | X145: 16 | Y145: Dolby Digital 5.1 | Z145: Dolby Digital 2.0 Stereo | AA145: 1.78 | AB145: 4 | AC145: Blu-ray | AD145: Witchblade | AE145: Witchblade1.0
A146: 145 | B146: 2.5 Dimensional Seduction | F146: X | L146: X | O146: X | W146: =144+144+144 -> 432 | X146: 16 | Y146: DTS-HD Master Audio 2.0 | Z146: DTS-HD Master Audio 2.0 | AA146: 1.78 | AB146: =1+1+1 -> 3 | AC146: Blu-ray | AD146: 2.5 Jigen no Ririsa | AE146: zzz 2.5Dimens1.0
A147: 146 | B147: Strike Witches: Operation Victory Arrow | D147: X | L147: X | R147: X | W147: 96 | X147: 16 | Y147: DTS-HD Master Audio 2.0 | Z147: DTS-HD Master Audio 2.0 | AA147: 1.78 | AB147: 1 | AC147: Blu-ray | AD147: Sutoraiku Witchīzu: Operation Victory Arrow | AE147: StrikeWitches2.5
A148: 147 | B148: Strike Witches - Staffel 1 | D148: X | R148: X | AC148: Blu-ray | AD148: Sutoraiku Witchīzu 2 | AE148: zzz StrikeWitches2.0
A149: 148
A150: 149
A151: 150
A152: 151
A153: 152
A154: 153
A155: 154
A156: 155
A157: 156
A158: 157
A159: 158
A160: 159
A161: 160
A162: 161
A163: 162
A164: 163
A165: 164
A166: 165
A167: 166
A168: 167
A169: 168
A170: 169
A171: 170
A172: 171
A173: 172
A174: 173
A175: 174
A176: 175
A177: 176
A178: 177
A179: 178
A180: 179
A181: 180
A182: 181
A183: 182
A184: 183
A185: 184
A186: 185
A187: 186
A188: 187
A189: 188
A190: 189
A191: 190
A192: 191
A193: 192
A194: =A193+1 -> 193
A195: 194
A196: 195
A197: 196
A198: 197
A199: 198
A200: 199
... 6 more rows

Sheet Musik
B1: Interpret | C1: Titel | D1: Musik | E1: Länge | F1: FSK | G1: Tonformat | H1: Bildformat (x:1) | I1: Anzahl Discs | J1: Medientyp | K1: Sortierschlüssel
A2: =A1+1 -> 1 | B2: Corrs, The | C2: Unplugged | D2: X | E2: 72 | F2: 0 | G2: Dolby Digital 5.1 | H2: 1.78 | I2: 1 | J2: DVD | K2: Cor - Unp
A3: 2 | B3: Metallica | C3: S&M | D3: X | E3: 190 | F3: 0 | G3: Dolby Digital 5.1 | H3: 1.33 | I3: 2 | J3: DVD | K3: Met- S&M
A4: 3 | B4: Paul McCartney | C4: In Red Square | D4: X | E4: 153 | F4: 0 | G4: DTS 5.1 | H4: 1.33 | I4: 1 | J4: DVD | K4: Pau - InR
A5: 4 | B5: Schandmaul | C5: Hexenkessel | D5: X | E5: 72 | F5: 6 | G5: Dolby Digital 5.1 | H5: 1.33 | I5: 1 | J5: DVD | K5: Sch - Hex
A6: 5 | B6: Schandmaul | C6: Kunststück | D6: X | E6: 91 | F6: 12 | G6: Dolby Digital 5.1 | H6: 1.78 | I6: 1 | J6: DVD | K6: Sch - Kun
A7: 6 | B7: Schandmaul | C7: Sinnfonie | D7: X | E7: 224 | F7: 0 | G7: DTS 5.1 | H7: 1.78 | I7: 2 | J7: DVD | K7: Sch - Sin
A8: 7 | B8: Shakira | C8: Unplugged | D8: X | E8: 75 | F8: 0 | G8: Dolby Digital 5.1 | H8: 1.33 | I8: 1 | J8: DVD | K8: Sha - Unp
A9: 8 | B9: Within Temptation | C9: Mother Earth | D9: X | E9: 72 | F9: 12 | G9: DTS 5.1 | H9: 1.33 | I9: 2 | J9: DVD | K9: Wit - Mot
A10: 9
A11: 10

Sheet Definitionen
A1: FSK | B1: Tonformat | C1: Bildformat | D1: Medientyp
A2: 0 | B2: - | C2: 1.33 | D2: DVD
A3: 6 | B3: Dolby Atmos 7.1.4 | C3: 1.78 | D3: Blu-ray
A4: 12 | B4: Dolby Digital 1.0 Mono | C4: 1.85 | D4: 3D Blu-ray
A5: 16 | B5: Dolby Digital 2.0 Stereo | C5: 2.1
A6: 18 | B6: Dolby Digital 2.0 Surround | C6: 2.2
B7: Dolby Digital 5.1 | C7: 2.24
B8: Dolby Digital 6.1 | C8: 2.35
B9: Dolby Digital 7.1 | C9: 2.39
B10: Dolby TrueHD 2.0 | C10: 2.4
B11: Dolby TrueHD 5.1
B12: Dolby TrueHD 7.1
B13: DTS 5.1
B14: DTS 6.1-ES
B15: DTS-ES Discrete 6.1
B16: DTS-HD High Resolution 5.1
B17: DTS-HD High Resolution 6.1
B18: DTS-HD High Resolution 7.1
B19: DTS-HD Master Audio 2.0
B20: DTS-HD Master Audio 5.1
B21: DTS-HD Master Audio 6.1
B22: DTS-HD Master Audio 7.1
B23: LPCM 2.0
